{"text_format":"1","workbook":"xlsx","n_sheets":16,"sheets":["Working","ChangeLog","Setup","Players","Matrix","Table","NAF","Round1","Round2","Round3","Round4","Round5","Round6","Round7","Round8","Round9"],"not_rendered":{"charts":0,"images":0,"macros":1,"external_links":0,"defined_names":29,"comments":1,"pivot_tables":0},"unopened":[],"bounds":{"document_bytes":16777216,"sheet_cells":100000,"rows_first":2000,"rows_last":500,"rows_between":2000,"halvings":0,"cell_chars":16384,"cell_head_chars":4096},"cells_cut":0,"cells_raw":0,"read":"whole","date_system":"1900"}

{"sheet":"Working","index":0,"n_rows":34,"n_cols":28,"rows_kept":34,"cut":false,"hidden":false,"merged":[]}
[null,null,null,null,null,null,null,null,null,null,null,null,null,null,null,null,null,null,null,null,null,null,null,null,null,"Latest Rd:",6]
[null,null,null,null,null,null,null,null,null,null,null,null,null,null,null,null,null,null,null,null,null,null,null,null,null,"Players:",20]
[null,null,null,null,null,null,null,null,null,null,null,null,null,null,null,null,null,null,null,null,null,null,null,null,null,"Display",14,"Columns"]
[null,null,null,null,null,null,null,null,null,null,null,null,null,null,null,null,null,null,null,null,null,null,null,null,null,"Enter",6,"Columns"]
[null,null,null,null,null,null,null,null,null,null,null,null,null,null,null,null,null,null,null,null,null,null,null,null,null,"Max random",3]
[]
[null,null,null,null,null,null,null,null,null,null,null,null,null,null,null,0]
[null,null,null,null,null,null,null,null,null,null,null,null,null,null,null,0]
[null,null,null,null,null,null,null,null,null,null,null,null,null,null,null,0]
[]
[null,null,null,null,null,null,null,null,null,null,null,null,null,null,null,null,null,null,null,null,null,null,null,null,null,null,"Amazons"]
[null,null,null,null,null,null,null,null,null,null,null,null,null,null,null,null,null,null,null,null,null,null,null,null,null,null,"Chaos"]
[null,null,null,null,null,null,null,null,null,null,null,null,null,null,null,0,null,null,null,null,null,null,null,null,null,null,"Chaos Dwarves"]
[null,null,null,null,null,null,null,null,null,null,null,null,null,null,null,0,null,null,null,null,null,null,null,null,null,null,"Chaos Pact"]
[null,null,null,null,null,null,null,null,null,null,null,null,null,null,null,0,null,null,null,null,null,null,null,null,null,null,"Dark Elves"]
[null,null,null,null,null,null,null,null,null,null,null,null,null,null,null,null,null,null,null,null,null,null,null,null,null,null,"Dwarves"]
[null,null,null,null,null,null,null,null,null,null,null,null,null,null,null,0,null,null,null,null,null,null,null,null,null,null,"Elves"]
[null,null,null,null,null,null,null,null,null,null,null,null,null,null,null,0,null,null,null,null,null,null,null,null,null,null,"Goblins"]
[null,null,null,null,null,null,null,null,null,null,null,null,null,null,null,null,null,null,null,null,null,null,null,null,null,null,"Halflings"]
[null,null,null,null,null,null,null,null,null,null,null,null,null,null,null,0,null,null,null,null,null,null,null,null,null,null,"High Elves"]
[null,null,null,null,null,null,null,null,null,null,null,null,null,null,null,null,null,null,null,null,null,null,null,null,null,null,"Humans"]
[null,null,null,null,null,null,null,null,null,null,null,null,null,null,null,0,null,null,null,null,null,null,null,null,null,null,"Khemri"]
[null,null,null,null,null,null,null,null,null,null,null,null,null,null,null,null,null,null,null,null,null,null,null,null,null,null,"Lizardmen"]
[null,null,null,null,null,null,null,null,null,null,null,null,null,null,null,null,null,null,null,null,null,null,null,null,null,null,"Necromantic"]
[null,null,null,null,null,null,null,null,null,null,null,null,null,null,null,null,null,null,null,null,null,null,null,null,null,null,"Norse"]
[null,null,null,null,null,null,null,null,null,null,null,null,null,null,null,null,null,null,null,null,null,null,null,null,null,null,"Nurgle's Rotters"]
[null,null,null,null,null,null,null,null,null,null,null,null,null,null,null,null,null,null,null,null,null,null,null,null,null,null,"Ogres"]
[null,null,null,null,null,null,null,null,null,null,null,null,null,null,null,null,null,null,null,null,null,null,null,null,null,null,"Orc"]
[null,null,null,null,null,null,null,null,null,null,null,null,null,null,null,null,null,null,null,null,null,null,null,null,null,null,"Skaven"]
[null,null,null,null,null,null,null,null,null,null,null,null,null,null,null,null,null,null,null,null,null,null,null,null,null,null,"Slann"]
[null,null,null,null,null,null,null,null,null,null,null,null,null,null,null,null,null,null,null,null,null,null,null,null,null,null,"Undead"]
[null,null,null,null,null,null,null,null,null,null,null,null,null,null,null,null,null,null,null,null,null,null,null,null,null,null,"Underworld"]
[null,null,null,null,null,null,null,null,null,null,null,null,null,null,null,null,null,null,null,null,null,null,null,null,null,null,"Vampires"]
[null,null,null,null,null,null,null,null,null,null,null,null,null,null,null,null,null,null,null,null,null,null,null,null,null,null,"Wood Elves"]

{"sheet":"ChangeLog","index":1,"n_rows":19,"n_cols":4,"rows_kept":19,"cut":false,"hidden":false,"merged":[]}
[null,"This spreadsheet is based on one by Kaper on an Excel forum: http://www.excelforum.com/excel-programming-vba-macros/1105569-swiss-pairing-algorithm-in-excel-to-organize-a-chess-tournament.html"]
[null,"Massive thanks due to him!"]
[null,"The original was used for Chess, and it has been adapted to work for Blood Bowl by sann0638 (Mike Davies)"]
[]
["Version","Summary","Date","Notes"]
["1.0","Multi-sheet version of the chess","2016-06-19"]
[1.1000000000000001,"Remove Black and White stuff","2016-06-19"]
[1.2,"Change to TDs to generate points","2016-06-19"]
[null,"Got the Swiss working properly","2016-06-19","Published."]
[1.3,"More help information.","2016-06-20"]
[null,"Added Table","2016-06-20"]
[null,"Added Opponent Score","2016-06-20"]
[2.1,"Big overhaul to where info stored","2016-06-21"]
[2.2000000000000002,"Putting in the Score formula","2016-06-21","Published."]
[3.1,"Added all tiebreaker columns","2016-06-22"]
[null,"Realised opponent score was wrong, fixed it.","2016-06-22"]
[3.2,"Fixed problem with sorting the table.","2016-06-23","Published."]
[3.3,"Tie-breakers implemented","2016-06-24"]
[null,"NAF Upload file","2016-06-24","Published."]

{"sheet":"Setup","index":2,"n_rows":39,"n_cols":10,"rows_kept":39,"cut":false,"hidden":false,"merged":[]}
["SCORING SETUP"]
[]
["Points for…",null,null,null,null,"Entry Data"]
["Win by at least 2 TD",9,null,null,null,"Player"]
["Win by 1 TD",6,null,null,null,"Points"]
["Draw",3,null,null,null,"TD",null,null,null,"Buttons for running a tournament:"]
["Lose by 1 TD",1,null,null,null,"Cas"]
["Lose by at least 2 TD",0,null,null,null,"Bonus1","Bonus1 Name"]
[null,null,null,null,null,"Bonus2","Bonus2 Name"]
["Assume 1 Point per TD/Cas/Etc up to…"]
["Max TD Bonus Pts",3]
["Max Cas Bonus Pts",3]
["Max Bonus1 Bonus Pts",0]
["Max Bonus2 Bonus Pts",0]
[]
["Test Scoring System Here"]
["Your Score (required)",2]
["Opponent Score (required)",4]
["Your Cas (optional)",3]
["Your Bonus 1 (optional)"]
["Your Bonus 2 (optional)"]
[]
["Your Points",{"$f":"fctScore(B17,B18,B19,B20,B21)","v":5}]
[]
["Tie Breaks"]
["Player"]
["Points"]
["TD For"]
["Cas For"]
[{"$f":"F8","v":"Bonus1"}]
[{"$f":"F9","v":"Bonus2"}]
["TD Against"]
["Cas Against"]
["TD Net"]
["Cas Net"]
["Wins",1]
["Draws",2]
["Losses"]
["Opp Score"]

{"sheet":"Players","index":3,"n_rows":51,"n_cols":5,"rows_kept":51,"cut":false,"hidden":false,"merged":[]}
["Ord","Display Name","NAF Name","NAF Number","Race"]
[{"$f":"IF(B2=\"\",\"\",MAX(A$1:A1)+1)","v":1},"Alex",{"$f":"B2","v":"Alex"},14304,"Nurgle's Rotters"]
[{"$f":"IF(B3=\"\",\"\",MAX(A$1:A2)+1)","v":2},"Mike","Mike",8241,"Slann"]
[{"$f":"IF(B4=\"\",\"\",MAX(A$1:A3)+1)","v":3},"Linus","Linus",12433,"Humans"]
[{"$f":"IF(B5=\"\",\"\",MAX(A$1:A4)+1)","v":4},"Player4","Player4",14223,"Underworld"]
[{"$f":"IF(B6=\"\",\"\",MAX(A$1:A5)+1)","v":5},"Player5","Player5",11578,"Necromantic"]
[{"$f":"IF(B7=\"\",\"\",MAX(A$1:A6)+1)","v":6},"Player6","Player6",6532,"Chaos"]
[{"$f":"IF(B8=\"\",\"\",MAX(A$1:A7)+1)","v":7},"Player7","Player7",11740,"Amazons"]
[{"$f":"IF(B9=\"\",\"\",MAX(A$1:A8)+1)","v":8},"Player8","Player8",5170,"Lizardmen"]
[{"$f":"IF(B10=\"\",\"\",MAX(A$1:A9)+1)","v":9},"Player9","Player9",3542,"Lizardmen"]
[{"$f":"IF(B11=\"\",\"\",MAX(A$1:A10)+1)","v":10},"Player10","Player10",4823,"Goblins"]
[{"$f":"IF(B12=\"\",\"\",MAX(A$1:A11)+1)","v":11},"Player11","Player11",16359,"Norse"]
[{"$f":"IF(B13=\"\",\"\",MAX(A$1:A12)+1)","v":12},"Player12","Player12",10805,"Humans"]
[{"$f":"IF(B14=\"\",\"\",MAX(A$1:A13)+1)","v":13},"Player13","Player13",15505,"Orc"]
[{"$f":"IF(B15=\"\",\"\",MAX(A$1:A14)+1)","v":14},"Player14","Player14",3114,"Necromantic"]
[{"$f":"IF(B16=\"\",\"\",MAX(A$1:A15)+1)","v":15},"Player15","Player15",978,"Wood Elves"]
[{"$f":"IF(B17=\"\",\"\",MAX(A$1:A16)+1)","v":16},"Player16","Player16",17686,"Chaos Dwarves"]
[{"$f":"IF(B18=\"\",\"\",MAX(A$1:A17)+1)","v":17},"Player17","Player17",3403,"Humans"]
[{"$f":"IF(B19=\"\",\"\",MAX(A$1:A18)+1)","v":18},"Player18","Player18",17340,"Underworld"]
[{"$f":"IF(B20=\"\",\"\",MAX(A$1:A19)+1)","v":19},"Player19","Player19",1532,"Elves"]
[{"$f":"IF(B21=\"\",\"\",MAX(A$1:A20)+1)","v":20},"Player20","Player20",3322,"Orc"]
[{"$f":"IF(B22=\"\",\"\",MAX(A$1:A21)+1)","v":""}]
[{"$f":"IF(B23=\"\",\"\",MAX(A$1:A22)+1)","v":""}]
[{"$f":"IF(B24=\"\",\"\",MAX(A$1:A23)+1)","v":""}]
[{"$f":"IF(B25=\"\",\"\",MAX(A$1:A24)+1)","v":""}]
[{"$f":"IF(B26=\"\",\"\",MAX(A$1:A25)+1)","v":""}]
[{"$f":"IF(B27=\"\",\"\",MAX(A$1:A26)+1)","v":""}]
[{"$f":"IF(B28=\"\",\"\",MAX(A$1:A27)+1)","v":""}]
[{"$f":"IF(B29=\"\",\"\",MAX(A$1:A28)+1)","v":""}]
[{"$f":"IF(B30=\"\",\"\",MAX(A$1:A29)+1)","v":""}]
[{"$f":"IF(B31=\"\",\"\",MAX(A$1:A30)+1)","v":""}]
[{"$f":"IF(B32=\"\",\"\",MAX(A$1:A31)+1)","v":""}]
[{"$f":"IF(B33=\"\",\"\",MAX(A$1:A32)+1)","v":""}]
[{"$f":"IF(B34=\"\",\"\",MAX(A$1:A33)+1)","v":""}]
[{"$f":"IF(B35=\"\",\"\",MAX(A$1:A34)+1)","v":""}]
[{"$f":"IF(B36=\"\",\"\",MAX(A$1:A35)+1)","v":""}]
[{"$f":"IF(B37=\"\",\"\",MAX(A$1:A36)+1)","v":""}]
[{"$f":"IF(B38=\"\",\"\",MAX(A$1:A37)+1)","v":""}]
[{"$f":"IF(B39=\"\",\"\",MAX(A$1:A38)+1)","v":""}]
[{"$f":"IF(B40=\"\",\"\",MAX(A$1:A39)+1)","v":""}]
[{"$f":"IF(B41=\"\",\"\",MAX(A$1:A40)+1)","v":""}]
[{"$f":"IF(B42=\"\",\"\",MAX(A$1:A41)+1)","v":""}]
[{"$f":"IF(B43=\"\",\"\",MAX(A$1:A42)+1)","v":""}]
[{"$f":"IF(B44=\"\",\"\",MAX(A$1:A43)+1)","v":""}]
[{"$f":"IF(B45=\"\",\"\",MAX(A$1:A44)+1)","v":""}]
[{"$f":"IF(B46=\"\",\"\",MAX(A$1:A45)+1)","v":""}]
[{"$f":"IF(B47=\"\",\"\",MAX(A$1:A46)+1)","v":""}]
[{"$f":"IF(B48=\"\",\"\",MAX(A$1:A47)+1)","v":""}]
[{"$f":"IF(B49=\"\",\"\",MAX(A$1:A48)+1)","v":""}]
[{"$f":"IF(B50=\"\",\"\",MAX(A$1:A49)+1)","v":""}]
[{"$f":"IF(B51=\"\",\"\",MAX(A$1:A50)+1)","v":""}]

{"sheet":"Matrix","index":4,"n_rows":21,"n_cols":21,"rows_kept":21,"cut":false,"hidden":false,"merged":[]}
[null,"Alex","Mike","Linus","Player4","Player5","Player6","Player7","Player8","Player9","Player10","Player11","Player12","Player13","Player14","Player15","Player16","Player17","Player18","Player19","Player20"]
["Alex",null,null,"R1, 7 - 7",null,null,"R2, 6 - 6",null,"R4, 11 - 2",null,null,null,"R6, 1 - 12",null,null,"R5, 5 - 5","R3, 11 - 6"]
["Mike",null,null,"R4, 13 - 3",null,"R1, 6 - 7",null,null,null,"R5, 10 - 5","R3, 5 - 5",null,null,null,null,"R6, 8 - 3",null,"R2, 11 - 3"]
["Linus","R1, 7 - 7","R4, 3 - 13",null,"R6, 3 - 12","R2, 9 - 2",null,"R3, 5 - 5",null,null,null,null,null,null,null,null,null,null,null,null,"R5, 1 - 11"]
["Player4",null,null,"R6, 12 - 3",null,null,null,null,null,null,"R1, 1 - 8",null,"R2, 3 - 9",null,null,null,null,"R4, 9 - 4","R3, 6 - 7","R5, 7 - 8"]
["Player5",null,"R1, 7 - 6","R2, 2 - 9",null,null,null,null,null,null,null,null,null,"R3, 6 - 5",null,null,"R4, 4 - 8",null,"R5, 4 - 9",null,"R6, 1 - 12"]
["Player6","R2, 6 - 6",null,null,null,null,null,null,null,"R1, 7 - 8",null,null,null,"R4, 2 - 13","R6, 14 - 1",null,null,"R5, 11 - 3",null,null,"R3, 2 - 8"]
["Player7",null,null,"R3, 5 - 5",null,null,null,null,"R2, 6 - 7",null,null,"R6, 13 - 2",null,null,"R5, 8 - 4",null,null,null,null,"R1, 10 - 4","R4, 4 - 4"]
["Player8","R4, 2 - 11",null,null,null,null,null,"R2, 7 - 6",null,"R6, 9 - 3","R5, 14 - 2",null,"R1, 12 - 1",null,null,"R3, 7 - 6"]
["Player9",null,"R5, 5 - 10",null,null,null,"R1, 8 - 7",null,"R6, 3 - 9",null,null,null,null,"R2, 10 - 1",null,"R4, 4 - 12",null,null,null,"R3, 11 - 2"]
["Player10",null,"R3, 5 - 5",null,"R1, 8 - 1",null,null,null,"R5, 2 - 14",null,null,null,"R4, 6 - 9",null,null,null,"R2, 9 - 4","R6, 8 - 2"]
["Player11",null,null,null,null,null,null,"R6, 2 - 13",null,null,null,null,"R5, 0 - 11",null,null,null,"R1, 4 - 8","R3, 12 - 3",null,"R4, 12 - 1","R2, 4 - 7"]
["Player12","R6, 12 - 1",null,null,"R2, 9 - 3",null,null,null,"R1, 1 - 12",null,"R4, 9 - 6","R5, 11 - 0",null,null,"R3, 12 - 1"]
["Player13",null,null,null,null,"R3, 5 - 6","R4, 13 - 2",null,null,"R2, 1 - 10",null,null,null,null,null,null,"R5, 2 - 9",null,"R1, 9 - 4","R6, 13 - 2"]
["Player14",null,null,null,null,null,"R6, 1 - 14","R5, 4 - 8",null,null,null,null,"R3, 1 - 12",null,null,"R2, 3 - 12",null,"R1, 9 - 6","R4, 6 - 5"]
["Player15","R5, 5 - 5","R6, 3 - 8",null,null,null,null,null,"R3, 6 - 7","R4, 12 - 4",null,null,null,null,"R2, 12 - 3",null,null,null,null,null,"R1, 10 - 5"]
["Player16","R3, 6 - 11",null,null,null,"R4, 8 - 4",null,null,null,null,"R2, 4 - 9","R1, 8 - 4",null,"R5, 9 - 2",null,null,null,null,"R6, 2 - 8"]
["Player17",null,"R2, 3 - 11",null,"R4, 4 - 9",null,"R5, 3 - 11",null,null,null,"R6, 2 - 8","R3, 3 - 12",null,null,"R1, 6 - 9"]
["Player18",null,null,null,"R3, 7 - 6","R5, 9 - 4",null,null,null,null,null,null,null,"R1, 4 - 9","R4, 5 - 6",null,"R6, 8 - 2",null,null,"R2, 1 - 14"]
["Player19",null,null,null,"R5, 8 - 7",null,null,"R1, 4 - 10",null,"R3, 2 - 11",null,"R4, 1 - 12",null,"R6, 2 - 13",null,null,null,null,"R2, 14 - 1"]
["Player20",null,null,"R5, 11 - 1",null,"R6, 12 - 1","R3, 8 - 2","R4, 4 - 4",null,null,null,"R2, 7 - 4",null,null,null,"R1, 5 - 10"]

{"sheet":"Table","index":5,"n_rows":21,"n_cols":14,"rows_kept":21,"cut":false,"hidden":false,"merged":[]}
["Player","Points","TD For","TD Against","TD Net","Cas For","Cas Against","Cas Net","Bonus1","Bonus2","Wins","Draws","Losses","Opp Score"]
["Player12",54,12,8,4,6,2,6,8,8,5,null,1,226]
["Mike",53,11,6,5,9,11,-3,7,8,4,1,1,200]
["Player8",51,13,8,5,7,8,1,10,9,5,null,1,268]
["Player15",48,12,8,4,5,11,-1,9,10,3,1,2,257]
["Player20",47,10,6,4,6,3,5,12,8,4,1,1,222]
["Player7",46,10,6,4,6,9,0,11,9,3,2,1,215]
["Player13",43,8,5,3,6,12,-5,8,7,3,null,3,209]
["Player6",42,8,7,1,9,11,1,6,12,2,1,3,217]
["Player9",41,10,11,-1,11,5,1,10,6,3,null,3,268]
["Alex",41,10,10,0,10,8,1,11,9,2,3,1,260]
["Player10",38,7,6,1,7,11,-1,5,10,3,1,2,254]
["Player4",38,10,9,1,5,11,-3,8,8,2,null,4,206]
["Player16",37,9,9,0,7,8,3,8,11,3,null,3,214]
["Player18",34,8,10,-2,7,8,-1,8,7,3,null,3,197]
["Player11",34,7,8,-1,5,8,-2,7,6,2,null,4,236]
["Player19",31,7,11,-4,11,7,3,10,10,2,null,4,236]
["Linus",28,8,13,-5,8,3,6,8,9,1,2,3,249]
["Player5",24,6,11,-5,9,5,1,10,6,2,null,4,242]
["Player14",24,5,11,-6,9,9,4,8,13,2,null,4,245]
["Player17",21,5,13,-8,12,5,9,2,14,null,null,6,229]

{"sheet":"NAF","index":6,"n_rows":956,"n_cols":2,"rows_kept":956,"cut":false,"hidden":false,"merged":[]}
["<?xml version=\"1.0\" encoding=\"UTF-8\"?>","<?xml version=\"1.0\" encoding=\"UTF-8\"?>"]
["<nafReport xmlns:blo=\"http://www.bloodbowl.net\">","<nafReport xmlns:blo=\"http://www.bloodbowl.net\">"]
["<organiser>me</organiser>","  <organiser>Grant Hallas</organiser>"]
["<coaches>","  <coaches>"]
["<coach>","    <coach>"]
["<name>Player1</name>","      <name>SewerRat</name>"]
["<number>16552</number>","      <number>5737</number>"]
["<team>Amazons</team>","      <team>Khemri</team>"]
["</coach>","    </coach>"]
["<coach>","    <coach>"]
["<name>Player2</name>","      <name>Purple_Nurple</name>"]
["<number>15801</number>","      <number>18962</number>"]
["<team>Dark Elves</team>","      <team>Undead</team>"]
["</coach>","    </coach>"]
["<coach>","    <coach>"]
["<name>Player3</name>","      <name>Grell</name>"]
["<number>19993</number>","      <number>4479</number>"]
["<team>Slann</team>","      <team>Lizardmen</team>"]
["</coach>","    </coach>"]
["<coach>","    <coach>"]
["<name>Player4</name>","      <name>Da5id</name>"]
["<number>1783</number>","      <number>11292</number>"]
["<team>Elves</team>","      <team>Orc</team>"]
["</coach>","    </coach>"]
["<coach>","    <coach>"]
["<name>Player5</name>","      <name>apartment42</name>"]
["<number>19138</number>","      <number>18040</number>"]
["<team>Vampires</team>","      <team>Lizardmen</team>"]
["</coach>","    </coach>"]
["<coach>","    <coach>"]
["<name>Player6</name>","      <name>Stimme</name>"]
["<number>14092</number>","      <number>17245</number>"]
["<team>Humans</team>","      <team>Nurgle's Rotters</team>"]
["</coach>","    </coach>"]
["<coach>","    <coach>"]
["<name>Player7</name>","      <name>natsirtm</name>"]
["<number>19300</number>","      <number>15336</number>"]
["<team>High Elves</team>","      <team>Goblins</team>"]
["</coach>","    </coach>"]
["<coach>","    <coach>"]
["<name>Player8</name>","      <name>L3athalK</name>"]
["<number>12730</number>","      <number>7465</number>"]
["<team>Underworld</team>","      <team>Lizardmen</team>"]
["</coach>","    </coach>"]
["<coach>","    <coach>"]
["<name>Player9</name>","      <name>Genghis</name>"]
["<number>11101</number>","      <number>19383</number>"]
["<team>Underworld</team>","      <team>Orc</team>"]
["</coach>","    </coach>"]
["<coach>","    <coach>"]
["<name>Player10</name>","      <name>delevus</name>"]
["<number>12383</number>","      <number>9884</number>"]
["<team>Ogres</team>","      <team>Undead</team>"]
["</coach>","    </coach>"]
["<coach>","    <coach>"]
["<name>Player11</name>","      <name>kikurasis</name>"]
["<number>3919</number>","      <number>16985</number>"]
["<team>Wood Elves</team>","      <team>Humans</team>"]
["</coach>","    </coach>"]
["<coach>","    <coach>"]
["<name>Player12</name>","      <name>tlawson</name>"]
["<number>18365</number>","      <number>19205</number>"]
["<team>Slann</team>","      <team>Necromantic</team>"]
["</coach>","    </coach>"]
["<coach>","    <coach>"]
["<name>Player13</name>","      <name>hammer16</name>"]
["<number>3064</number>","      <number>20377</number>"]
["<team>Chaos Dwarves</team>","      <team>Lizardmen</team>"]
["</coach>","    </coach>"]
["<coach>","    <coach>"]
["<name>Player14</name>","      <name>ruggerman08</name>"]
["<number>10674</number>","      <number>15391</number>"]
["<team>Vampires</team>","      <team>Norse</team>"]
["</coach>","    </coach>"]
["<coach>","    <coach>"]
["<name>Player15</name>","      <name>timhotep</name>"]
["<number>8538</number>","      <number>22355</number>"]
["<team>Lizardmen</team>","      <team>Norse</team>"]
["</coach>","    </coach>"]
["<coach>","    <coach>"]
["<name>Player16</name>","      <name>Dearnk</name>"]
["<number>9311</number>","      <number>22354</number>"]
["<team>Ogres</team>","      <team>Orc</team>"]
["</coach>","    </coach>"]
["<coach>","    <coach>"]
["<name>Player17</name>","      <name>Deadlock</name>"]
["<number>15028</number>","      <number>1836</number>"]
["<team>Amazons</team>","      <team>Dwarves</team>"]
["</coach>","    </coach>"]
["<coach>","    <coach>"]
["<name>Player18</name>","      <name>twodiceblock</name>"]
["<number>8965</number>","      <number>5787</number>"]
["<team>Khemri</team>","      <team>Nurgle's Rotters</team>"]
["</coach>","    </coach>"]
["<coach>","    <coach>"]
["<name>Player19</name>","      <name>jrock56</name>"]
["<number>13157</number>","      <number>11552</number>"]
["<team>Undead</team>","      <team>Chaos Pact</team>"]
["</coach>","    </coach>"]
["<coach>","    <coach>"]
["<name>Player20</name>","      <name>zap_rowsdower</name>"]
["<number>14947</number>","      <number>15257</number>"]
["<team>Goblins</team>","      <team>Amazons</team>"]
["</coach>","    </coach>"]
["</coaches>","  </coaches>"]
["<game>","  <game>"]
["<timestamp>2016-06-25 01:00</timestamp>","    <timeStamp>2016-05-28 10:00</timeStamp>"]
["<playerRecord>","    <playerRecord>"]
["<name>Player9</name>","      <name>Purple_Nurple</name>"]
["<number>11101</number>","      <number>18962</number>"]
["<teamRating>100</teamRating>","      <teamRating>100</teamRating>"]
["<touchDowns>5</touchDowns>","      <touchDowns>0</touchDowns>"]
["<badlyHurt>2</badlyHurt>","      <badlyHurt>0</badlyHurt>"]
["</playerRecord>","    </playerRecord>"]
["<playerRecord>","    <playerRecord>"]
["<name>Player8</name>","      <name>ruggerman08</name>"]
["<number>12730</number>","      <number>15391</number>"]
["<teamRating>100</teamRating>","      <teamRating>100</teamRating>"]
["<touchDowns>5</touchDowns>","      <touchDowns>1</touchDowns>"]
["<badlyHurt>2</badlyHurt>","      <badlyHurt>3</badlyHurt>"]
["</playerRecord>","    </playerRecord>"]
["</game>","  </game>"]
["<game>","  <game>"]
["<timestamp>2016-06-25 01:00</timestamp>","    <timeStamp>2016-05-28 10:00</timeStamp>"]
["<playerRecord>","    <playerRecord>"]
["<name>Player20</name>","      <name>zap_rowsdower</name>"]
["<number>14947</number>","      <number>15257</number>"]
["<teamRating>100</teamRating>","      <teamRating>100</teamRating>"]
["<touchDowns>9</touchDowns>","      <touchDowns>1</touchDowns>"]
["<badlyHurt>2</badlyHurt>","      <badlyHurt>1</badlyHurt>"]
["</playerRecord>","    </playerRecord>"]
["<playerRecord>","    <playerRecord>"]
["<name>Player14</name>","      <name>Grell</name>"]
["<number>10674</number>","      <number>4479</number>"]
["<teamRating>100</teamRating>","      <teamRating>100</teamRating>"]
["<touchDowns>2</touchDowns>","      <touchDowns>3</touchDowns>"]
["<badlyHurt>1</badlyHurt>","      <badlyHurt>0</badlyHurt>"]
["</playerRecord>","    </playerRecord>"]
["</game>","  </game>"]
["<game>","  <game>"]
["<timestamp>2016-06-25 01:00</timestamp>","    <timeStamp>2016-05-28 10:00</timeStamp>"]
["<playerRecord>","    <playerRecord>"]
["<name>Player11</name>","      <name>delevus</name>"]
["<number>3919</number>","      <number>9884</number>"]
["<teamRating>100</teamRating>","      <teamRating>100</teamRating>"]
["<touchDowns>6</touchDowns>","      <touchDowns>2</touchDowns>"]
["<badlyHurt>2</badlyHurt>","      <badlyHurt>0</badlyHurt>"]
["</playerRecord>","    </playerRecord>"]
["<playerRecord>","    <playerRecord>"]
["<name>Player2</name>","      <name>timhotep</name>"]
["<number>15801</number>","      <number>22355</number>"]
["<teamRating>100</teamRating>","      <teamRating>100</teamRating>"]
["<touchDowns>7</touchDowns>","      <touchDowns>1</touchDowns>"]
["<badlyHurt>2</badlyHurt>","      <badlyHurt>0</badlyHurt>"]
["</playerRecord>","    </playerRecord>"]
["</game>","  </game>"]
["<game>","  <game>"]
["<timestamp>2016-06-25 01:00</timestamp>","    <timeStamp>2016-05-28 10:00</timeStamp>"]
["<playerRecord>","    <playerRecord>"]
["<name>Player18</name>","      <name>apartment42</name>"]
["<number>8965</number>","      <number>18040</number>"]
["<teamRating>100</teamRating>","      <teamRating>100</teamRating>"]
["<touchDowns>12</touchDowns>","      <touchDowns>0</touchDowns>"]
["<badlyHurt>2</badlyHurt>","      <badlyHurt>1</badlyHurt>"]
["</playerRecord>","    </playerRecord>"]
["<playerRecord>","    <playerRecord>"]
["<name>Player3</name>","      <name>SewerRat</name>"]
["<number>19993</number>","      <number>5737</number>"]
["<teamRating>100</teamRating>","      <teamRating>100</teamRating>"]
["<touchDowns>3</touchDowns>","      <touchDowns>1</touchDowns>"]
["<badlyHurt>0</badlyHurt>","      <badlyHurt>3</badlyHurt>"]
["</playerRecord>","    </playerRecord>"]
["</game>","  </game>"]
["<game>","  <game>"]
["<timestamp>2016-06-25 01:00</timestamp>","    <timeStamp>2016-05-28 10:00</timeStamp>"]
["<playerRecord>","    <playerRecord>"]
["<name>Player19</name>","      <name>Stimme</name>"]
["<number>13157</number>","      <number>17245</number>"]
["<teamRating>100</teamRating>","      <teamRating>100</teamRating>"]
["<touchDowns>13</touchDowns>","      <touchDowns>0</touchDowns>"]
["<badlyHurt>3</badlyHurt>","      <badlyHurt>1</badlyHurt>"]
["</playerRecord>","    </playerRecord>"]
["<playerRecord>","    <playerRecord>"]
["<name>Player15</name>","      <name>twodiceblock</name>"]
["<number>8538</number>","      <number>5787</number>"]
["<teamRating>100</teamRating>","      <teamRating>100</teamRating>"]
["<touchDowns>3</touchDowns>","      <touchDowns>1</touchDowns>"]
["<badlyHurt>1</badlyHurt>","      <badlyHurt>1</badlyHurt>"]
["</playerRecord>","    </playerRecord>"]
["</game>","  </game>"]
["<game>","  <game>"]
["<timestamp>2016-06-25 01:00</timestamp>","    <timeStamp>2016-05-28 10:00</timeStamp>"]
["<playerRecord>","    <playerRecord>"]
["<name>Player4</name>","      <name>Dearnk</name>"]
["<number>1783</number>","      <number>22354</number>"]
["<teamRating>100</teamRating>","      <teamRating>100</teamRating>"]
["<touchDowns>8</touchDowns>","      <touchDowns>1</touchDowns>"]
["<badlyHurt>2</badlyHurt>","      <badlyHurt>2</badlyHurt>"]
["</playerRecord>","    </playerRecord>"]
["<playerRecord>","    <playerRecord>"]
["<name>Player7</name>","      <name>Genghis</name>"]
["<number>19300</number>","      <number>19383</number>"]
["<teamRating>100</teamRating>","      <teamRating>100</teamRating>"]
["<touchDowns>6</touchDowns>","      <touchDowns>0</touchDowns>"]
["<badlyHurt>2</badlyHurt>","      <badlyHurt>1</badlyHurt>"]
["</playerRecord>","    </playerRecord>"]
["</game>","  </game>"]
["<game>","  <game>"]
["<timestamp>2016-06-25 01:00</timestamp>","    <timeStamp>2016-05-28 10:00</timeStamp>"]
["<playerRecord>","    <playerRecord>"]
["<name>Player10</name>","      <name>Deadlock</name>"]
["<number>12383</number>","      <number>1836</number>"]
["<teamRating>100</teamRating>","      <teamRating>100</teamRating>"]
["<touchDowns>5</touchDowns>","      <touchDowns>1</touchDowns>"]
["<badlyHurt>2</badlyHurt>","      <badlyHurt>1</badlyHurt>"]
["</playerRecord>","    </playerRecord>"]
["<playerRecord>","    <playerRecord>"]
["<name>Player17</name>","      <name>jrock56</name>"]
["<number>15028</number>","      <number>11552</number>"]
["<teamRating>100</teamRating>","      <teamRating>100</teamRating>"]
["<touchDowns>5</touchDowns>","      <touchDowns>2</touchDowns>"]
["<badlyHurt>2</badlyHurt>","      <badlyHurt>0</badlyHurt>"]
["</playerRecord>","    </playerRecord>"]
["</game>","  </game>"]
["<game>","  <game>"]
["<timestamp>2016-06-25 01:00</timestamp>","    <timeStamp>2016-05-28 10:00</timeStamp>"]
["<playerRecord>","    <playerRecord>"]
["<name>Player16</name>","      <name>hammer16</name>"]
["<number>9311</number>","      <number>20377</number>"]
["<teamRating>100</teamRating>","      <teamRating>100</teamRating>"]
["<touchDowns>7</touchDowns>","      <touchDowns>2</touchDowns>"]
["<badlyHurt>1</badlyHurt>","      <badlyHurt>4</badlyHurt>"]
["</playerRecord>","    </playerRecord>"]
["<playerRecord>","    <playerRecord>"]
["<name>Player6</name>","      <name>Da5id</name>"]
["<number>14092</number>","      <number>11292</number>"]
["<teamRating>100</teamRating>","      <teamRating>100</teamRating>"]
["<touchDowns>6</touchDowns>","      <touchDowns>1</touchDowns>"]
["<badlyHurt>1</badlyHurt>","      <badlyHurt>1</badlyHurt>"]
["</playerRecord>","    </playerRecord>"]
["</game>","  </game>"]
["<game>","  <game>"]
["<timestamp>2016-06-25 01:00</timestamp>","    <timeStamp>2016-05-28 10:00</timeStamp>"]
["<playerRecord>","    <playerRecord>"]
["<name>Player12</name>","      <name>kikurasis</name>"]
["<number>18365</number>","      <number>16985</number>"]
["<teamRating>100</teamRating>","      <teamRating>100</teamRating>"]
["<touchDowns>3</touchDowns>","      <touchDowns>1</touchDowns>"]
["<badlyHurt>0</badlyHurt>","      <badlyHurt>1</badlyHurt>"]
["</playerRecord>","    </playerRecord>"]
["<playerRecord>","    <playerRecord>"]
["<name>Player1</name>","      <name>natsirtm</name>"]
["<number>16552</number>","      <number>15336</number>"]
["<teamRating>100</teamRating>","      <teamRating>100</teamRating>"]
["<touchDowns>12</touchDowns>","      <touchDowns>0</touchDowns>"]
["<badlyHurt>2</badlyHurt>","      <badlyHurt>2</badlyHurt>"]
["</playerRecord>","    </playerRecord>"]
["</game>","  </game>"]
["<game>","  <game>"]
["<timestamp>2016-06-25 01:00</timestamp>","    <timeStamp>2016-05-28 10:00</timeStamp>"]
["<playerRecord>","    <playerRecord>"]
["<name>Player13</name>","      <name>tlawson</name>"]
["<number>3064</number>","      <number>19205</number>"]
["<teamRating>100</teamRating>","      <teamRating>100</teamRating>"]
["<touchDowns>3</touchDowns>","      <touchDowns>0</touchDowns>"]
["<badlyHurt>1</badlyHurt>","      <badlyHurt>1</badlyHurt>"]
["</playerRecord>","    </playerRecord>"]
["<playerRecord>","    <playerRecord>"]
["<name>Player5</name>","      <name>L3athalK</name>"]
["<number>19138</number>","      <number>7465</number>"]
["<teamRating>100</teamRating>","      <teamRating>100</teamRating>"]
["<touchDowns>10</touchDowns>","      <touchDowns>2</touchDowns>"]
["<badlyHurt>2</badlyHurt>","      <badlyHurt>0</badlyHurt>"]
["</playerRecord>","    </playerRecord>"]
["</game>","  </game>"]
["<game>","  <game>"]
["<timestamp>2016-06-25 02:00</timestamp>","    <timeStamp>2016-05-28 13:00</timeStamp>"]
["<playerRecord>","    <playerRecord>"]
["<name>Player19</name>","      <name>Grell</name>"]
["<number>13157</number>","      <number>4479</number>"]
["<teamRating>100</teamRating>","      <teamRating>100</teamRating>"]
["<touchDowns>14</touchDowns>","      <touchDowns>2</touchDowns>"]
["<badlyHurt>3</badlyHurt>","      <badlyHurt>0</badlyHurt>"]
["</playerRecord>","    </playerRecord>"]
["<playerRecord>","    <playerRecord>"]
["<name>Player1</name>","      <name>L3athalK</name>"]
["<number>16552</number>","      <number>7465</number>"]
["<teamRating>100</teamRating>","      <teamRating>100</teamRating>"]
["<touchDowns>2</touchDowns>","      <touchDowns>2</touchDowns>"]
["<badlyHurt>1</badlyHurt>","      <badlyHurt>3</badlyHurt>"]
["</playerRecord>","    </playerRecord>"]
["</game>","  </game>"]
["<game>","  <game>"]
["<timestamp>2016-06-25 02:00</timestamp>","    <timeStamp>2016-05-28 13:00</timeStamp>"]
["<playerRecord>","    <playerRecord>"]
["<name>Player18</name>","      <name>twodiceblock</name>"]
["<number>8965</number>","      <number>5787</number>"]
["<teamRating>100</teamRating>","      <teamRating>100</teamRating>"]
["<touchDowns>8</touchDowns>","      <touchDowns>0</touchDowns>"]
["<badlyHurt>1</badlyHurt>","      <badlyHurt>1</badlyHurt>"]
["</playerRecord>","    </playerRecord>"]
["<playerRecord>","    <playerRecord>"]
["<name>Player5</name>","      <name>SewerRat</name>"]
["<number>19138</number>","      <number>5737</number>"]
["<teamRating>100</teamRating>","      <teamRating>100</teamRating>"]
["<touchDowns>2</touchDowns>","      <touchDowns>0</touchDowns>"]
["<badlyHurt>0</badlyHurt>","      <badlyHurt>2</badlyHurt>"]
["</playerRecord>","    </playerRecord>"]
["</game>","  </game>"]
["<game>","  <game>"]
["<timestamp>2016-06-25 02:00</timestamp>","    <timeStamp>2016-05-28 13:00</timeStamp>"]
["<playerRecord>","    <playerRecord>"]
["<name>Player20</name>","      <name>jrock56</name>"]
["<number>14947</number>","      <number>11552</number>"]
["<teamRating>100</teamRating>","      <teamRating>100</teamRating>"]
["<touchDowns>4</touchDowns>","      <touchDowns>1</touchDowns>"]
["<badlyHurt>1</badlyHurt>","      <badlyHurt>2</badlyHurt>"]
["</playerRecord>","    </playerRecord>"]
["<playerRecord>","    <playerRecord>"]
["<name>Player4</name>","      <name>hammer16</name>"]
["<number>1783</number>","      <number>20377</number>"]
["<teamRating>100</teamRating>","      <teamRating>100</teamRating>"]
["<touchDowns>11</touchDowns>","      <touchDowns>1</touchDowns>"]
["<badlyHurt>2</badlyHurt>","      <badlyHurt>1</badlyHurt>"]
["</playerRecord>","    </playerRecord>"]
["</game>","  </game>"]
["<game>","  <game>"]
["<timestamp>2016-06-25 02:00</timestamp>","    <timeStamp>2016-05-28 13:00</timeStamp>"]
["<playerRecord>","    <playerRecord>"]
["<name>Player16</name>","      <name>ruggerman08</name>"]
["<number>9311</number>","      <number>15391</number>"]
["<teamRating>100</teamRating>","      <teamRating>100</teamRating>"]
["<touchDowns>14</touchDowns>","      <touchDowns>1</touchDowns>"]
["<badlyHurt>3</badlyHurt>","      <badlyHurt>4</badlyHurt>"]
["</playerRecord>","    </playerRecord>"]
["<playerRecord>","    <playerRecord>"]
["<name>Player2</name>","      <name>delevus</name>"]
["<number>15801</number>","      <number>9884</number>"]
["<teamRating>100</teamRating>","      <teamRating>100</teamRating>"]
["<touchDowns>3</touchDowns>","      <touchDowns>1</touchDowns>"]
["<badlyHurt>1</badlyHurt>","      <badlyHurt>1</badlyHurt>"]
["</playerRecord>","    </playerRecord>"]
["</game>","  </game>"]
["<game>","  <game>"]
["<timestamp>2016-06-25 02:00</timestamp>","    <timeStamp>2016-05-28 13:00</timeStamp>"]
["<playerRecord>","    <playerRecord>"]
["<name>Player11</name>","      <name>kikurasis</name>"]
["<number>3919</number>","      <number>16985</number>"]
["<teamRating>100</teamRating>","      <teamRating>100</teamRating>"]
["<touchDowns>4</touchDowns>","      <touchDowns>2</touchDowns>"]
["<badlyHurt>1</badlyHurt>","      <badlyHurt>1</badlyHurt>"]
["</playerRecord>","    </playerRecord>"]
["<playerRecord>","    <playerRecord>"]
["<name>Player6</name>","      <name>Dearnk</name>"]
["<number>14092</number>","      <number>22354</number>"]
["<teamRating>100</teamRating>","      <teamRating>100</teamRating>"]
["<touchDowns>10</touchDowns>","      <touchDowns>1</touchDowns>"]
["<badlyHurt>2</badlyHurt>","      <badlyHurt>1</badlyHurt>"]
["</playerRecord>","    </playerRecord>"]
["</game>","  </game>"]
["<game>","  <game>"]
["<timestamp>2016-06-25 02:00</timestamp>","    <timeStamp>2016-05-28 13:00</timeStamp>"]
["<playerRecord>","    <playerRecord>"]
["<name>Player7</name>","      <name>apartment42</name>"]
["<number>19300</number>","      <number>18040</number>"]
["<teamRating>100</teamRating>","      <teamRating>100</teamRating>"]
["<touchDowns>6</touchDowns>","      <touchDowns>1</touchDowns>"]
["<badlyHurt>2</badlyHurt>","      <badlyHurt>1</badlyHurt>"]
["</playerRecord>","    </playerRecord>"]
["<playerRecord>","    <playerRecord>"]
["<name>Player17</name>","      <name>Stimme</name>"]
["<number>15028</number>","      <number>17245</number>"]
["<teamRating>100</teamRating>","      <teamRating>100</teamRating>"]
["<touchDowns>5</touchDowns>","      <touchDowns>1</touchDowns>"]
["<badlyHurt>2</badlyHurt>","      <badlyHurt>0</badlyHurt>"]
["</playerRecord>","    </playerRecord>"]
["</game>","  </game>"]
["<game>","  <game>"]
["<timestamp>2016-06-25 02:00</timestamp>","    <timeStamp>2016-05-28 13:00</timeStamp>"]
["<playerRecord>","    <playerRecord>"]
["<name>Player10</name>","      <name>timhotep</name>"]
["<number>12383</number>","      <number>22355</number>"]
["<teamRating>100</teamRating>","      <teamRating>100</teamRating>"]
["<touchDowns>4</touchDowns>","      <touchDowns>1</touchDowns>"]
["<badlyHurt>1</badlyHurt>","      <badlyHurt>0</badlyHurt>"]
["</playerRecord>","    </playerRecord>"]
["<playerRecord>","    <playerRecord>"]
["<name>Player8</name>","      <name>Deadlock</name>"]
["<number>12730</number>","      <number>1836</number>"]
["<teamRating>100</teamRating>","      <teamRating>100</teamRating>"]
["<touchDowns>6</touchDowns>","      <touchDowns>2</touchDowns>"]
["<badlyHurt>1</badlyHurt>","      <badlyHurt>6</badlyHurt>"]
["</playerRecord>","    </playerRecord>"]
["</game>","  </game>"]
["<game>","  <game>"]
["<timestamp>2016-06-25 02:00</timestamp>","    <timeStamp>2016-05-28 13:00</timeStamp>"]
["<playerRecord>","    <playerRecord>"]
["<name>Player9</name>","      <name>Genghis</name>"]
["<number>11101</number>","      <number>19383</number>"]
["<teamRating>100</teamRating>","      <teamRating>100</teamRating>"]
["<touchDowns>8</touchDowns>","      <touchDowns>2</touchDowns>"]
["<badlyHurt>2</badlyHurt>","      <badlyHurt>4</badlyHurt>"]
["</playerRecord>","    </playerRecord>"]
["<playerRecord>","    <playerRecord>"]
["<name>Player3</name>","      <name>Purple_Nurple</name>"]
["<number>19993</number>","      <number>18962</number>"]
["<teamRating>100</teamRating>","      <teamRating>100</teamRating>"]
["<touchDowns>5</touchDowns>","      <touchDowns>1</touchDowns>"]
["<badlyHurt>1</badlyHurt>","      <badlyHurt>1</badlyHurt>"]
["</playerRecord>","    </playerRecord>"]
["</game>","  </game>"]
["<game>","  <game>"]
["<timestamp>2016-06-25 02:00</timestamp>","    <timeStamp>2016-05-28 13:00</timeStamp>"]
["<playerRecord>","    <playerRecord>"]
["<name>Player15</name>","      <name>Da5id</name>"]
["<number>8538</number>","      <number>11292</number>"]
["<teamRating>100</teamRating>","      <teamRating>100</teamRating>"]
["<touchDowns>9</touchDowns>","      <touchDowns>0</touchDowns>"]
["<badlyHurt>2</badlyHurt>","      <badlyHurt>4</badlyHurt>"]
["</playerRecord>","    </playerRecord>"]
["<playerRecord>","    <playerRecord>"]
["<name>Player13</name>","      <name>natsirtm</name>"]
["<number>3064</number>","      <number>15336</number>"]
["<teamRating>100</teamRating>","      <teamRating>100</teamRating>"]
["<touchDowns>5</touchDowns>","      <touchDowns>2</touchDowns>"]
["<badlyHurt>1</badlyHurt>","      <badlyHurt>2</badlyHurt>"]
["</playerRecord>","    </playerRecord>"]
["</game>","  </game>"]
["<game>","  <game>"]
["<timestamp>2016-06-25 02:00</timestamp>","    <timeStamp>2016-05-28 13:00</timeStamp>"]
["<playerRecord>","    <playerRecord>"]
["<name>Player12</name>","      <name>zap_rowsdower</name>"]
["<number>18365</number>","      <number>15257</number>"]
["<teamRating>100</teamRating>","      <teamRating>100</teamRating>"]
["<touchDowns>4</touchDowns>","      <touchDowns>0</touchDowns>"]
["<badlyHurt>1</badlyHurt>","      <badlyHurt>0</badlyHurt>"]
["</playerRecord>","    </playerRecord>"]
["<playerRecord>","    <playerRecord>"]
["<name>Player14</name>","      <name>tlawson</name>"]
["<number>10674</number>","      <number>19205</number>"]
["<teamRating>100</teamRating>","      <teamRating>100</teamRating>"]
["<touchDowns>10</touchDowns>","      <touchDowns>1</touchDowns>"]
["<badlyHurt>2</badlyHurt>","      <badlyHurt>0</badlyHurt>"]
["</playerRecord>","    </playerRecord>"]
["</game>","  </game>"]
["<game>","  <game>"]
["<timestamp>2016-06-25 03:00</timestamp>","    <timeStamp>2016-05-28 16:00</timeStamp>"]
["<playerRecord>","    <playerRecord>"]
["<name>Player19</name>","      <name>kikurasis</name>"]
["<number>13157</number>","      <number>16985</number>"]
["<teamRating>100</teamRating>","      <teamRating>100</teamRating>"]
["<touchDowns>4</touchDowns>","      <touchDowns>2</touchDowns>"]
["<badlyHurt>0</badlyHurt>","      <badlyHurt>1</badlyHurt>"]
["</playerRecord>","    </playerRecord>"]
["<playerRecord>","    <playerRecord>"]
["<name>Player16</name>","      <name>L3athalK</name>"]
["<number>9311</number>","      <number>7465</number>"]
["<teamRating>100</teamRating>","      <teamRating>100</teamRating>"]
["<touchDowns>8</touchDowns>","      <touchDowns>2</touchDowns>"]
["<badlyHurt>1</badlyHurt>","      <badlyHurt>0</badlyHurt>"]
["</playerRecord>","    </playerRecord>"]
["</game>","  </game>"]
["<game>","  <game>"]
["<timestamp>2016-06-25 03:00</timestamp>","    <timeStamp>2016-05-28 16:00</timeStamp>"]
["<playerRecord>","    <playerRecord>"]
["<name>Player18</name>","      <name>jrock56</name>"]
["<number>8965</number>","      <number>11552</number>"]
["<teamRating>100</teamRating>","      <teamRating>100</teamRating>"]
["<touchDowns>5</touchDowns>","      <touchDowns>1</touchDowns>"]
["<badlyHurt>1</badlyHurt>","      <badlyHurt>3</badlyHurt>"]
["</playerRecord>","    </playerRecord>"]
["<playerRecord>","    <playerRecord>"]
["<name>Player4</name>","      <name>SewerRat</name>"]
["<number>1783</number>","      <number>5737</number>"]
["<teamRating>100</teamRating>","      <teamRating>100</teamRating>"]
["<touchDowns>6</touchDowns>","      <touchDowns>1</touchDowns>"]
["<badlyHurt>1</badlyHurt>","      <badlyHurt>1</badlyHurt>"]
["</playerRecord>","    </playerRecord>"]
["</game>","  </game>"]
["<game>","  <game>"]
["<timestamp>2016-06-25 03:00</timestamp>","    <timeStamp>2016-05-28 16:00</timeStamp>"]
["<playerRecord>","    <playerRecord>"]
["<name>Player6</name>","      <name>twodiceblock</name>"]
["<number>14092</number>","      <number>5787</number>"]
["<teamRating>100</teamRating>","      <teamRating>100</teamRating>"]
["<touchDowns>3</touchDowns>","      <touchDowns>2</touchDowns>"]
["<badlyHurt>0</badlyHurt>","      <badlyHurt>1</badlyHurt>"]
["</playerRecord>","    </playerRecord>"]
["<playerRecord>","    <playerRecord>"]
["<name>Player1</name>","      <name>Grell</name>"]
["<number>16552</number>","      <number>4479</number>"]
["<teamRating>100</teamRating>","      <teamRating>100</teamRating>"]
["<touchDowns>4</touchDowns>","      <touchDowns>1</touchDowns>"]
["<badlyHurt>0</badlyHurt>","      <badlyHurt>0</badlyHurt>"]
["</playerRecord>","    </playerRecord>"]
["</game>","  </game>"]
["<game>","  <game>"]
["<timestamp>2016-06-25 03:00</timestamp>","    <timeStamp>2016-05-28 16:00</timeStamp>"]
["<playerRecord>","    <playerRecord>"]
["<name>Player9</name>","      <name>delevus</name>"]
["<number>11101</number>","      <number>9884</number>"]
["<teamRating>100</teamRating>","      <teamRating>100</teamRating>"]
["<touchDowns>10</touchDowns>","      <touchDowns>2</touchDowns>"]
["<badlyHurt>3</badlyHurt>","      <badlyHurt>1</badlyHurt>"]
["</playerRecord>","    </playerRecord>"]
["<playerRecord>","    <playerRecord>"]
["<name>Player20</name>","      <name>hammer16</name>"]
["<number>14947</number>","      <number>20377</number>"]
["<teamRating>100</teamRating>","      <teamRating>100</teamRating>"]
["<touchDowns>3</touchDowns>","      <touchDowns>0</touchDowns>"]
["<badlyHurt>2</badlyHurt>","      <badlyHurt>1</badlyHurt>"]
["</playerRecord>","    </playerRecord>"]
["</game>","  </game>"]
["<game>","  <game>"]
["<timestamp>2016-06-25 03:00</timestamp>","    <timeStamp>2016-05-28 16:00</timeStamp>"]
["<playerRecord>","    <playerRecord>"]
["<name>Player15</name>","      <name>ruggerman08</name>"]
["<number>8538</number>","      <number>15391</number>"]
["<teamRating>100</teamRating>","      <teamRating>100</teamRating>"]
["<touchDowns>7</touchDowns>","      <touchDowns>2</touchDowns>"]
["<badlyHurt>1</badlyHurt>","      <badlyHurt>0</badlyHurt>"]
["</playerRecord>","    </playerRecord>"]
["<playerRecord>","    <playerRecord>"]
["<name>Player5</name>","      <name>Dearnk</name>"]
["<number>19138</number>","      <number>22354</number>"]
["<teamRating>100</teamRating>","      <teamRating>100</teamRating>"]
["<touchDowns>4</touchDowns>","      <touchDowns>1</touchDowns>"]
["<badlyHurt>1</badlyHurt>","      <badlyHurt>1</badlyHurt>"]
["</playerRecord>","    </playerRecord>"]
["</game>","  </game>"]
["<game>","  <game>"]
["<timestamp>2016-06-25 03:00</timestamp>","    <timeStamp>2016-05-28 16:00</timeStamp>"]
["<playerRecord>","    <playerRecord>"]
["<name>Player14</name>","      <name>natsirtm</name>"]
["<number>10674</number>","      <number>15336</number>"]
["<teamRating>100</teamRating>","      <teamRating>100</teamRating>"]
["<touchDowns>13</touchDowns>","      <touchDowns>1</touchDowns>"]
["<badlyHurt>3</badlyHurt>","      <badlyHurt>2</badlyHurt>"]
["</playerRecord>","    </playerRecord>"]
["<playerRecord>","    <playerRecord>"]
["<name>Player7</name>","      <name>Deadlock</name>"]
["<number>19300</number>","      <number>1836</number>"]
["<teamRating>100</teamRating>","      <teamRating>100</teamRating>"]
["<touchDowns>2</touchDowns>","      <touchDowns>0</touchDowns>"]
["<badlyHurt>0</badlyHurt>","      <badlyHurt>3</badlyHurt>"]
["</playerRecord>","    </playerRecord>"]
["</game>","  </game>"]
["<game>","  <game>"]
["<timestamp>2016-06-25 03:00</timestamp>","    <timeStamp>2016-05-28 16:00</timeStamp>"]
["<playerRecord>","    <playerRecord>"]
["<name>Player8</name>","      <name>tlawson</name>"]
["<number>12730</number>","      <number>19205</number>"]
["<teamRating>100</teamRating>","      <teamRating>100</teamRating>"]
["<touchDowns>2</touchDowns>","      <touchDowns>0</touchDowns>"]
["<badlyHurt>1</badlyHurt>","      <badlyHurt>1</badlyHurt>"]
["</playerRecord>","    </playerRecord>"]
["<playerRecord>","    <playerRecord>"]
["<name>Player2</name>","      <name>Genghis</name>"]
["<number>15801</number>","      <number>19383</number>"]
["<teamRating>100</teamRating>","      <teamRating>100</teamRating>"]
["<touchDowns>14</touchDowns>","      <touchDowns>1</touchDowns>"]
["<badlyHurt>3</badlyHurt>","      <badlyHurt>1</badlyHurt>"]
["</playerRecord>","    </playerRecord>"]
["</game>","  </game>"]
["<game>","  <game>"]
["<timestamp>2016-06-25 03:00</timestamp>","    <timeStamp>2016-05-28 16:00</timeStamp>"]
["<playerRecord>","    <playerRecord>"]
["<name>Player17</name>","      <name>apartment42</name>"]
["<number>15028</number>","      <number>18040</number>"]
["<teamRating>100</teamRating>","      <teamRating>100</teamRating>"]
["<touchDowns>11</touchDowns>","      <touchDowns>5</touchDowns>"]
["<badlyHurt>3</badlyHurt>","      <badlyHurt>0</badlyHurt>"]
["</playerRecord>","    </playerRecord>"]
["<playerRecord>","    <playerRecord>"]
["<name>Player11</name>","      <name>Purple_Nurple</name>"]
["<number>3919</number>","      <number>18962</number>"]
["<teamRating>100</teamRating>","      <teamRating>100</teamRating>"]
["<touchDowns>4</touchDowns>","      <touchDowns>2</touchDowns>"]
["<badlyHurt>2</badlyHurt>","      <badlyHurt>0</badlyHurt>"]
["</playerRecord>","    </playerRecord>"]
["</game>","  </game>"]
["<game>","  <game>"]
["<timestamp>2016-06-25 03:00</timestamp>","    <timeStamp>2016-05-28 16:00</timeStamp>"]
["<playerRecord>","    <playerRecord>"]
["<name>Player10</name>","      <name>Stimme</name>"]
["<number>12383</number>","      <number>17245</number>"]
["<teamRating>100</teamRating>","      <teamRating>100</teamRating>"]
["<touchDowns>9</touchDowns>","      <touchDowns>2</touchDowns>"]
["<badlyHurt>1</badlyHurt>","      <badlyHurt>1</badlyHurt>"]
["</playerRecord>","    </playerRecord>"]
["<playerRecord>","    <playerRecord>"]
["<name>Player13</name>","      <name>timhotep</name>"]
["<number>3064</number>","      <number>22355</number>"]
["<teamRating>100</teamRating>","      <teamRating>100</teamRating>"]
["<touchDowns>1</touchDowns>","      <touchDowns>0</touchDowns>"]
["<badlyHurt>0</badlyHurt>","      <badlyHurt>1</badlyHurt>"]
["</playerRecord>","    </playerRecord>"]
["</game>","  </game>"]
["<game>","  <game>"]
["<timestamp>2016-06-25 03:00</timestamp>","    <timeStamp>2016-05-28 16:00</timeStamp>"]
["<playerRecord>","    <playerRecord>"]
["<name>Player3</name>","      <name>Da5id</name>"]
["<number>19993</number>","      <number>11292</number>"]
["<teamRating>100</teamRating>","      <teamRating>100</teamRating>"]
["<touchDowns>2</touchDowns>","      <touchDowns>0</touchDowns>"]
["<badlyHurt>0</badlyHurt>","      <badlyHurt>2</badlyHurt>"]
["</playerRecord>","    </playerRecord>"]
["<playerRecord>","    <playerRecord>"]
["<name>Player12</name>","      <name>zap_rowsdower</name>"]
["<number>18365</number>","      <number>15257</number>"]
["<teamRating>100</teamRating>","      <teamRating>100</teamRating>"]
["<touchDowns>13</touchDowns>","      <touchDowns>2</touchDowns>"]
["<badlyHurt>2</badlyHurt>","      <badlyHurt>1</badlyHurt>"]
["</playerRecord>","    </playerRecord>"]
["</game>","  </game>"]
["<game>","  <game>"]
["<timestamp>2016-06-25 04:00</timestamp>","    <timeStamp>2016-05-29 10:00</timeStamp>"]
["<playerRecord>","    <playerRecord>"]
["<name>Player19</name>","      <name>kikurasis</name>"]
["<number>13157</number>","      <number>16985</number>"]
["<teamRating>100</teamRating>","      <teamRating>100</teamRating>"]
["<touchDowns>5</touchDowns>","      <touchDowns>1</touchDowns>"]
["<badlyHurt>1</badlyHurt>","      <badlyHurt>1</badlyHurt>"]
["</playerRecord>","    </playerRecord>"]
["<playerRecord>","    <playerRecord>"]
["<name>Player4</name>","      <name>twodiceblock</name>"]
["<number>1783</number>","      <number>5787</number>"]
["<teamRating>100</teamRating>","      <teamRating>100</teamRating>"]
["<touchDowns>5</touchDowns>","      <touchDowns>1</touchDowns>"]
["<badlyHurt>1</badlyHurt>","      <badlyHurt>1</badlyHurt>"]
["</playerRecord>","    </playerRecord>"]
["</game>","  </game>"]
["<game>","  <game>"]
["<timestamp>2016-06-25 04:00</timestamp>","    <timeStamp>2016-05-29 10:00</timeStamp>"]
["<playerRecord>","    <playerRecord>"]
["<name>Player16</name>","      <name>delevus</name>"]
["<number>9311</number>","      <number>9884</number>"]
["<teamRating>100</teamRating>","      <teamRating>100</teamRating>"]
["<touchDowns>8</touchDowns>","      <touchDowns>2</touchDowns>"]
["<badlyHurt>2</badlyHurt>","      <badlyHurt>3</badlyHurt>"]
["</playerRecord>","    </playerRecord>"]
["<playerRecord>","    <playerRecord>"]
["<name>Player18</name>","      <name>natsirtm</name>"]
["<number>8965</number>","      <number>15336</number>"]
["<teamRating>100</teamRating>","      <teamRating>100</teamRating>"]
["<touchDowns>8</touchDowns>","      <touchDowns>0</touchDowns>"]
["<badlyHurt>2</badlyHurt>","      <badlyHurt>0</badlyHurt>"]
["</playerRecord>","    </playerRecord>"]
["</game>","  </game>"]
["<game>","  <game>"]
["<timestamp>2016-06-25 04:00</timestamp>","    <timeStamp>2016-05-29 10:00</timeStamp>"]
["<playerRecord>","    <playerRecord>"]
["<name>Player14</name>","      <name>ruggerman08</name>"]
["<number>10674</number>","      <number>15391</number>"]
["<teamRating>100</teamRating>","      <teamRating>100</teamRating>"]
["<touchDowns>9</touchDowns>","      <touchDowns>2</touchDowns>"]
["<badlyHurt>2</badlyHurt>","      <badlyHurt>3</badlyHurt>"]
["</playerRecord>","    </playerRecord>"]
["<playerRecord>","    <playerRecord>"]
["<name>Player2</name>","      <name>Genghis</name>"]
["<number>15801</number>","      <number>19383</number>"]
["<teamRating>100</teamRating>","      <teamRating>100</teamRating>"]
["<touchDowns>2</touchDowns>","      <touchDowns>0</touchDowns>"]
["<badlyHurt>1</badlyHurt>","      <badlyHurt>1</badlyHurt>"]
["</playerRecord>","    </playerRecord>"]
["</game>","  </game>"]
["<game>","  <game>"]
["<timestamp>2016-06-25 04:00</timestamp>","    <timeStamp>2016-05-29 10:00</timeStamp>"]
["<playerRecord>","    <playerRecord>"]
["<name>Player9</name>","      <name>SewerRat</name>"]
["<number>11101</number>","      <number>5737</number>"]
["<teamRating>100</teamRating>","      <teamRating>100</teamRating>"]
["<touchDowns>2</touchDowns>","      <touchDowns>2</touchDowns>"]
["<badlyHurt>0</badlyHurt>","      <badlyHurt>6</badlyHurt>"]
["</playerRecord>","    </playerRecord>"]
["<playerRecord>","    <playerRecord>"]
["<name>Player17</name>","      <name>L3athalK</name>"]
["<number>15028</number>","      <number>7465</number>"]
["<teamRating>100</teamRating>","      <teamRating>100</teamRating>"]
["<touchDowns>13</touchDowns>","      <touchDowns>0</touchDowns>"]
["<badlyHurt>2</badlyHurt>","      <badlyHurt>0</badlyHurt>"]
["</playerRecord>","    </playerRecord>"]
["</game>","  </game>"]
["<game>","  <game>"]
["<timestamp>2016-06-25 04:00</timestamp>","    <timeStamp>2016-05-29 10:00</timeStamp>"]
["<playerRecord>","    <playerRecord>"]
["<name>Player12</name>","      <name>jrock56</name>"]
["<number>18365</number>","      <number>11552</number>"]
["<teamRating>100</teamRating>","      <teamRating>100</teamRating>"]
["<touchDowns>1</touchDowns>","      <touchDowns>1</touchDowns>"]
["<badlyHurt>0</badlyHurt>","      <badlyHurt>2</badlyHurt>"]
["</playerRecord>","    </playerRecord>"]
["<playerRecord>","    <playerRecord>"]
["<name>Player15</name>","      <name>Grell</name>"]
["<number>8538</number>","      <number>4479</number>"]
["<teamRating>100</teamRating>","      <teamRating>100</teamRating>"]
["<touchDowns>7</touchDowns>","      <touchDowns>1</touchDowns>"]
["<badlyHurt>1</badlyHurt>","      <badlyHurt>0</badlyHurt>"]
["</playerRecord>","    </playerRecord>"]
["</game>","  </game>"]
["<game>","  <game>"]
["<timestamp>2016-06-25 04:00</timestamp>","    <timeStamp>2016-05-29 10:00</timeStamp>"]
["<playerRecord>","    <playerRecord>"]
["<name>Player6</name>","      <name>hammer16</name>"]
["<number>14092</number>","      <number>20377</number>"]
["<teamRating>100</teamRating>","      <teamRating>100</teamRating>"]
["<touchDowns>4</touchDowns>","      <touchDowns>0</touchDowns>"]
["<badlyHurt>1</badlyHurt>","      <badlyHurt>1</badlyHurt>"]
["</playerRecord>","    </playerRecord>"]
["<playerRecord>","    <playerRecord>"]
["<name>Player10</name>","      <name>Stimme</name>"]
["<number>12383</number>","      <number>17245</number>"]
["<teamRating>100</teamRating>","      <teamRating>100</teamRating>"]
["<touchDowns>5</touchDowns>","      <touchDowns>4</touchDowns>"]
["<badlyHurt>1</badlyHurt>","      <badlyHurt>2</badlyHurt>"]
["</playerRecord>","    </playerRecord>"]
["</game>","  </game>"]
["<game>","  <game>"]
["<timestamp>2016-06-25 04:00</timestamp>","    <timeStamp>2016-05-29 10:00</timeStamp>"]
["<playerRecord>","    <playerRecord>"]
["<name>Player1</name>","      <name>apartment42</name>"]
["<number>16552</number>","      <number>18040</number>"]
["<teamRating>100</teamRating>","      <teamRating>100</teamRating>"]
["<touchDowns>10</touchDowns>","      <touchDowns>2</touchDowns>"]
["<badlyHurt>2</badlyHurt>","      <badlyHurt>0</badlyHurt>"]
["</playerRecord>","    </playerRecord>"]
["<playerRecord>","    <playerRecord>"]
["<name>Player5</name>","      <name>Dearnk</name>"]
["<number>19138</number>","      <number>22354</number>"]
["<teamRating>100</teamRating>","      <teamRating>100</teamRating>"]
["<touchDowns>3</touchDowns>","      <touchDowns>0</touchDowns>"]
["<badlyHurt>1</badlyHurt>","      <badlyHurt>1</badlyHurt>"]
["</playerRecord>","    </playerRecord>"]
["</game>","  </game>"]
["<game>","  <game>"]
["<timestamp>2016-06-25 04:00</timestamp>","    <timeStamp>2016-05-29 10:00</timeStamp>"]
["<playerRecord>","    <playerRecord>"]
["<name>Player20</name>","      <name>tlawson</name>"]
["<number>14947</number>","      <number>19205</number>"]
["<teamRating>100</teamRating>","      <teamRating>100</teamRating>"]
["<touchDowns>4</touchDowns>","      <touchDowns>2</touchDowns>"]
["<badlyHurt>2</badlyHurt>","      <badlyHurt>0</badlyHurt>"]
["</playerRecord>","    </playerRecord>"]
["<playerRecord>","    <playerRecord>"]
["<name>Player7</name>","      <name>Deadlock</name>"]
["<number>19300</number>","      <number>1836</number>"]
["<teamRating>100</teamRating>","      <teamRating>100</teamRating>"]
["<touchDowns>11</touchDowns>","      <touchDowns>1</touchDowns>"]
["<badlyHurt>3</badlyHurt>","      <badlyHurt>0</badlyHurt>"]
["</playerRecord>","    </playerRecord>"]
["</game>","  </game>"]
["<game>","  <game>"]
["<timestamp>2016-06-25 04:00</timestamp>","    <timeStamp>2016-05-29 10:00</timeStamp>"]
["<playerRecord>","    <playerRecord>"]
["<name>Player11</name>","      <name>zap_rowsdower</name>"]
["<number>3919</number>","      <number>15257</number>"]
["<teamRating>100</teamRating>","      <teamRating>100</teamRating>"]
["<touchDowns>1</touchDowns>","      <touchDowns>0</touchDowns>"]
["<badlyHurt>0</badlyHurt>","      <badlyHurt>3</badlyHurt>"]
["</playerRecord>","    </playerRecord>"]
["<playerRecord>","    <playerRecord>"]
["<name>Player8</name>","      <name>Purple_Nurple</name>"]
["<number>12730</number>","      <number>18962</number>"]
["<teamRating>100</teamRating>","      <teamRating>100</teamRating>"]
["<touchDowns>11</touchDowns>","      <touchDowns>2</touchDowns>"]
["<badlyHurt>2</badlyHurt>","      <badlyHurt>4</badlyHurt>"]
["</playerRecord>","    </playerRecord>"]
["</game>","  </game>"]
["<game>","  <game>"]
["<timestamp>2016-06-25 04:00</timestamp>","    <timeStamp>2016-05-29 10:00</timeStamp>"]
["<playerRecord>","    <playerRecord>"]
["<name>Player3</name>","      <name>timhotep</name>"]
["<number>19993</number>","      <number>22355</number>"]
["<teamRating>100</teamRating>","      <teamRating>100</teamRating>"]
["<touchDowns>5</touchDowns>","      <touchDowns>2</touchDowns>"]
["<badlyHurt>2</badlyHurt>","      <badlyHurt>1</badlyHurt>"]
["</playerRecord>","    </playerRecord>"]
["<playerRecord>","    <playerRecord>"]
["<name>Player13</name>","      <name>Da5id</name>"]
["<number>3064</number>","      <number>11292</number>"]
["<teamRating>100</teamRating>","      <teamRating>100</teamRating>"]
["<touchDowns>9</touchDowns>","      <touchDowns>0</touchDowns>"]
["<badlyHurt>3</badlyHurt>","      <badlyHurt>2</badlyHurt>"]
["</playerRecord>","    </playerRecord>"]
["</game>","  </game>"]
["<game>","  <game>"]
["<timestamp>2016-06-25 05:00</timestamp>","    <timeStamp>2016-05-29 13:00</timeStamp>"]
["<playerRecord>","    <playerRecord>"]
["<name>Player16</name>","      <name>delevus</name>"]
["<number>9311</number>","      <number>9884</number>"]
["<teamRating>100</teamRating>","      <teamRating>100</teamRating>"]
["<touchDowns>5</touchDowns>","      <touchDowns>1</touchDowns>"]
["<badlyHurt>1</badlyHurt>","      <badlyHurt>2</badlyHurt>"]
["</playerRecord>","    </playerRecord>"]
["<playerRecord>","    <playerRecord>"]
["<name>Player14</name>","      <name>twodiceblock</name>"]
["<number>10674</number>","      <number>5787</number>"]
["<teamRating>100</teamRating>","      <teamRating>100</teamRating>"]
["<touchDowns>7</touchDowns>","      <touchDowns>0</touchDowns>"]
["<badlyHurt>1</badlyHurt>","      <badlyHurt>3</badlyHurt>"]
["</playerRecord>","    </playerRecord>"]
["</game>","  </game>"]
["<game>","  <game>"]
["<timestamp>2016-06-25 05:00</timestamp>","    <timeStamp>2016-05-29 13:00</timeStamp>"]
["<playerRecord>","    <playerRecord>"]
["<name>Player19</name>","      <name>ruggerman08</name>"]
["<number>13157</number>","      <number>15391</number>"]
["<teamRating>100</teamRating>","      <teamRating>100</teamRating>"]
["<touchDowns>12</touchDowns>","      <touchDowns>0</touchDowns>"]
["<badlyHurt>2</badlyHurt>","      <badlyHurt>0</badlyHurt>"]
["</playerRecord>","    </playerRecord>"]
["<playerRecord>","    <playerRecord>"]
["<name>Player17</name>","      <name>SewerRat</name>"]
["<number>15028</number>","      <number>5737</number>"]
["<teamRating>100</teamRating>","      <teamRating>100</teamRating>"]
["<touchDowns>0</touchDowns>","      <touchDowns>1</touchDowns>"]
["<badlyHurt>0</badlyHurt>","      <badlyHurt>2</badlyHurt>"]
["</playerRecord>","    </playerRecord>"]
["</game>","  </game>"]
["<game>","  <game>"]
["<timestamp>2016-06-25 05:00</timestamp>","    <timeStamp>2016-05-29 13:00</timeStamp>"]
["<playerRecord>","    <playerRecord>"]
["<name>Player18</name>","      <name>kikurasis</name>"]
["<number>8965</number>","      <number>16985</number>"]
["<teamRating>100</teamRating>","      <teamRating>100</teamRating>"]
["<touchDowns>13</touchDowns>","      <touchDowns>0</touchDowns>"]
["<badlyHurt>3</badlyHurt>","      <badlyHurt>4</badlyHurt>"]
["</playerRecord>","    </playerRecord>"]
["<playerRecord>","    <playerRecord>"]
["<name>Player1</name>","      <name>Stimme</name>"]
["<number>16552</number>","      <number>17245</number>"]
["<teamRating>100</teamRating>","      <teamRating>100</teamRating>"]
["<touchDowns>2</touchDowns>","      <touchDowns>1</touchDowns>"]
["<badlyHurt>1</badlyHurt>","      <badlyHurt>5</badlyHurt>"]
["</playerRecord>","    </playerRecord>"]
["</game>","  </game>"]
["<game>","  <game>"]
["<timestamp>2016-06-25 05:00</timestamp>","    <timeStamp>2016-05-29 13:00</timeStamp>"]
["<playerRecord>","    <playerRecord>"]
["<name>Player4</name>","      <name>apartment42</name>"]
["<number>1783</number>","      <number>18040</number>"]
["<teamRating>100</teamRating>","      <teamRating>100</teamRating>"]
["<touchDowns>0</touchDowns>","      <touchDowns>1</touchDowns>"]
["<badlyHurt>0</badlyHurt>","      <badlyHurt>3</badlyHurt>"]
["</playerRecord>","    </playerRecord>"]
["<playerRecord>","    <playerRecord>"]
["<name>Player15</name>","      <name>jrock56</name>"]
["<number>8538</number>","      <number>11552</number>"]
["<teamRating>100</teamRating>","      <teamRating>100</teamRating>"]
["<touchDowns>14</touchDowns>","      <touchDowns>1</touchDowns>"]
["<badlyHurt>3</badlyHurt>","      <badlyHurt>2</badlyHurt>"]
["</playerRecord>","    </playerRecord>"]
["</game>","  </game>"]
["<game>","  <game>"]
["<timestamp>2016-06-25 05:00</timestamp>","    <timeStamp>2016-05-29 13:00</timeStamp>"]
["<playerRecord>","    <playerRecord>"]
["<name>Player2</name>","      <name>Genghis</name>"]
["<number>15801</number>","      <number>19383</number>"]
["<teamRating>100</teamRating>","      <teamRating>100</teamRating>"]
["<touchDowns>9</touchDowns>","      <touchDowns>2</touchDowns>"]
["<badlyHurt>2</badlyHurt>","      <badlyHurt>3</badlyHurt>"]
["</playerRecord>","    </playerRecord>"]
["<playerRecord>","    <playerRecord>"]
["<name>Player9</name>","      <name>natsirtm</name>"]
["<number>11101</number>","      <number>15336</number>"]
["<teamRating>100</teamRating>","      <teamRating>100</teamRating>"]
["<touchDowns>4</touchDowns>","      <touchDowns>1</touchDowns>"]
["<badlyHurt>1</badlyHurt>","      <badlyHurt>0</badlyHurt>"]
["</playerRecord>","    </playerRecord>"]
["</game>","  </game>"]
["<game>","  <game>"]
["<timestamp>2016-06-25 05:00</timestamp>","    <timeStamp>2016-05-29 13:00</timeStamp>"]
["<playerRecord>","    <playerRecord>"]
["<name>Player7</name>","      <name>tlawson</name>"]
["<number>19300</number>","      <number>19205</number>"]
["<teamRating>100</teamRating>","      <teamRating>100</teamRating>"]
["<touchDowns>3</touchDowns>","      <touchDowns>2</touchDowns>"]
["<badlyHurt>0</badlyHurt>","      <badlyHurt>3</badlyHurt>"]
["</playerRecord>","    </playerRecord>"]
["<playerRecord>","    <playerRecord>"]
["<name>Player8</name>","      <name>Grell</name>"]
["<number>12730</number>","      <number>4479</number>"]
["<teamRating>100</teamRating>","      <teamRating>100</teamRating>"]
["<touchDowns>3</touchDowns>","      <touchDowns>1</touchDowns>"]
["<badlyHurt>0</badlyHurt>","      <badlyHurt>0</badlyHurt>"]
["</playerRecord>","    </playerRecord>"]
["</game>","  </game>"]
["<game>","  <game>"]
["<timestamp>2016-06-25 05:00</timestamp>","    <timeStamp>2016-05-29 13:00</timeStamp>"]
["<playerRecord>","    <playerRecord>"]
["<name>Player10</name>","      <name>L3athalK</name>"]
["<number>12383</number>","      <number>7465</number>"]
["<teamRating>100</teamRating>","      <teamRating>100</teamRating>"]
["<touchDowns>13</touchDowns>","      <touchDowns>1</touchDowns>"]
["<badlyHurt>3</badlyHurt>","      <badlyHurt>1</badlyHurt>"]
["</playerRecord>","    </playerRecord>"]
["<playerRecord>","    <playerRecord>"]
["<name>Player12</name>","      <name>hammer16</name>"]
["<number>18365</number>","      <number>20377</number>"]
["<teamRating>100</teamRating>","      <teamRating>100</teamRating>"]
["<touchDowns>4</touchDowns>","      <touchDowns>2</touchDowns>"]
["<badlyHurt>1</badlyHurt>","      <badlyHurt>3</badlyHurt>"]
["</playerRecord>","    </playerRecord>"]
["</game>","  </game>"]
["<game>","  <game>"]
["<timestamp>2016-06-25 05:00</timestamp>","    <timeStamp>2016-05-29 13:00</timeStamp>"]
["<playerRecord>","    <playerRecord>"]
["<name>Player6</name>","      <name>Dearnk</name>"]
["<number>14092</number>","      <number>22354</number>"]
["<teamRating>100</teamRating>","      <teamRating>100</teamRating>"]
["<touchDowns>4</touchDowns>","      <touchDowns>2</touchDowns>"]
["<badlyHurt>2</badlyHurt>","      <badlyHurt>3</badlyHurt>"]
["</playerRecord>","    </playerRecord>"]
["<playerRecord>","    <playerRecord>"]
["<name>Player5</name>","      <name>Purple_Nurple</name>"]
["<number>19138</number>","      <number>18962</number>"]
["<teamRating>100</teamRating>","      <teamRating>100</teamRating>"]
["<touchDowns>11</touchDowns>","      <touchDowns>3</touchDowns>"]
["<badlyHurt>3</badlyHurt>","      <badlyHurt>1</badlyHurt>"]
["</playerRecord>","    </playerRecord>"]
["</game>","  </game>"]
["<game>","  <game>"]
["<timestamp>2016-06-25 05:00</timestamp>","    <timeStamp>2016-05-29 13:00</timeStamp>"]
["<playerRecord>","    <playerRecord>"]
["<name>Player13</name>","      <name>zap_rowsdower</name>"]
["<number>3064</number>","      <number>15257</number>"]
["<teamRating>100</teamRating>","      <teamRating>100</teamRating>"]
["<touchDowns>13</touchDowns>","      <touchDowns>2</touchDowns>"]
["<badlyHurt>3</badlyHurt>","      <badlyHurt>6</badlyHurt>"]
["</playerRecord>","    </playerRecord>"]
["<playerRecord>","    <playerRecord>"]
["<name>Player20</name>","      <name>timhotep</name>"]
["<number>14947</number>","      <number>22355</number>"]
["<teamRating>100</teamRating>","      <teamRating>100</teamRating>"]
["<touchDowns>2</touchDowns>","      <touchDowns>0</touchDowns>"]
["<badlyHurt>0</badlyHurt>","      <badlyHurt>2</badlyHurt>"]
["</playerRecord>","    </playerRecord>"]
["</game>","  </game>"]
["<game>","  <game>"]
["<timestamp>2016-06-25 05:00</timestamp>","    <timeStamp>2016-05-29 13:00</timeStamp>"]
["<playerRecord>","    <playerRecord>"]
["<name>Player3</name>","      <name>Deadlock</name>"]
["<number>19993</number>","      <number>1836</number>"]
["<teamRating>100</teamRating>","      <teamRating>100</teamRating>"]
["<touchDowns>10</touchDowns>","      <touchDowns>1</touchDowns>"]
["<badlyHurt>3</badlyHurt>","      <badlyHurt>1</badlyHurt>"]
["</playerRecord>","    </playerRecord>"]
["<playerRecord>","    <playerRecord>"]
["<name>Player11</name>","      <name>Da5id</name>"]
["<number>3919</number>","      <number>11292</number>"]
["<teamRating>100</teamRating>","      <teamRating>100</teamRating>"]
["<touchDowns>5</touchDowns>","      <touchDowns>0</touchDowns>"]
["<badlyHurt>2</badlyHurt>","      <badlyHurt>1</badlyHurt>"]
["</playerRecord>","    </playerRecord>"]
["</game>","  </game>"]
["</nafReport>","</nafReport>"]

{"sheet":"Round1","index":7,"n_rows":21,"n_cols":21,"rows_kept":21,"cut":false,"hidden":false,"merged":[]}
[null,"Home Player","Away Player","Home Points","Away Points","Home TD","Away TD","Home Cas","Away Cas","Home Bonus1","Away Bonus1","Home Bonus2","Away Bonus2",null,null,null,null,null,null,"Points After Games"]
[null,"Player15","Player20",{"$f":"fctScore(F2,G2,H2,J2,L2)","v":10},{"$f":"fctScore(G2,F2,I2,K2,M2)","v":5},3,2,1,2,1,1,2,0,null,null,null,null,null,null,"Player8",12]
[null,"Player19","Player7",{"$f":"fctScore(F3,G3,H3,J3,L3)","v":4},{"$f":"fctScore(G3,F3,I3,K3,M3)","v":10},1,2,2,2,2,2,0,3,null,null,null,null,null,null,"Player7",10]
[null,"Player14","Player17",9,6,3,2,0,3,3,0,3,3,null,null,null,null,null,null,"Player15",10]
[null,"Player6","Player9",7,8,2,2,2,3,0,1,2,0,null,null,null,null,null,null,"Player14",9]
[null,"Alex","Linus",7,7,2,2,2,2,2,0,1,2,null,null,null,null,null,null,"Player13",9]
[null,"Player10","Player4",8,1,1,0,1,0,0,3,1,1,null,null,null,null,null,null,"Player9",8]
[null,"Mike","Player5",6,7,2,2,1,2,1,3,3,2,null,null,null,null,null,null,"Player16",8]
[null,"Player18","Player13",4,9,1,2,2,1,1,2,1,0,null,null,null,null,null,null,"Player10",8]
[null,"Player16","Player11",8,4,2,1,0,2,1,2,3,2,null,null,null,null,null,null,"Player5",7]
[null,"Player8","Player12",12,1,3,0,0,1,2,0,3,1,null,null,null,null,null,null,"Linus",7]
[null,null,null,null,null,null,null,null,null,null,null,null,null,null,null,null,null,null,null,"Alex",7]
[null,null,null,null,null,null,null,null,null,null,null,null,null,null,null,null,null,null,null,"Player6",7]
[null,null,null,null,null,null,null,null,null,null,null,null,null,null,null,null,null,null,null,"Player17",6]
[null,null,null,null,null,null,null,null,null,null,null,null,null,null,null,null,null,null,null,"Mike",6]
[null,null,null,null,null,null,null,null,null,null,null,null,null,null,null,null,null,null,null,"Player20",5]
[null,null,null,null,null,null,null,null,null,null,null,null,null,null,null,null,null,null,null,"Player11",4]
[null,null,null,null,null,null,null,null,null,null,null,null,null,null,null,null,null,null,null,"Player19",4]
[null,null,null,null,null,null,null,null,null,null,null,null,null,null,null,null,null,null,null,"Player18",4]
[null,null,null,null,null,null,null,null,null,null,null,null,null,null,null,null,null,null,null,"Player12",1]
[null,null,null,null,null,null,null,null,null,null,null,null,null,null,null,null,null,null,null,"Player4",1]

{"sheet":"Round2","index":8,"n_rows":21,"n_cols":21,"rows_kept":21,"cut":false,"hidden":false,"merged":[]}
["Swaps: 0","Home Player","Away Player","Home Points","Away Points","Home TD","Away TD","Home Cas","Away Cas","Home Bonus1","Away Bonus1","Home Bonus2","Away Bonus2",null,null,null,"Points Before Games",null,null,"Points After Games"]
[null,"Player8","Player7",{"$f":"fctScore(F2,G2,H2,J2,L2)","v":7},{"$f":"fctScore(G2,F2,I2,K2,M2)","v":6},2,2,2,1,2,1,2,1,null,null,null,"Player8",12,null,"Player15",22]
[null,"Player15","Player14",{"$f":"fctScore(F3,G3,H3,J3,L3)","v":12},{"$f":"fctScore(G3,F3,I3,K3,M3)","v":3},3,1,0,2,1,0,3,1,null,null,null,"Player7",10,null,"Player8",19]
[null,"Player13","Player9",1,10,0,1,0,3,2,1,2,1,null,null,null,"Player15",10,null,"Player9",18]
[null,"Player16","Player10",4,9,1,2,2,1,1,1,0,1,null,null,null,"Player14",9,null,"Player19",18]
[null,"Player5","Linus",2,9,1,2,0,1,2,0,0,2,null,null,null,"Player13",9,null,"Player10",17]
[null,"Alex","Player6",6,6,1,1,2,2,2,2,2,2,null,null,null,"Player9",8,null,"Mike",17]
[null,"Player17","Mike",3,11,1,2,1,3,0,0,2,2,null,null,null,"Player16",8,null,"Linus",16]
[null,"Player20","Player11",7,4,1,1,3,0,3,1,3,0,null,null,null,"Player10",8,null,"Player7",16]
[null,"Player19","Player18",14,1,3,0,2,1,2,0,2,0,null,null,null,"Player5",7,null,"Alex",13]
[null,"Player12","Player4",9,3,2,1,1,1,2,0,2,0,null,null,null,"Linus",7,null,"Player6",13]
[null,null,null,null,null,null,null,null,null,null,null,null,null,null,null,null,"Alex",7,null,"Player16",12]
[null,null,null,null,null,null,null,null,null,null,null,null,null,null,null,null,"Player6",7,null,"Player20",12]
[null,null,null,null,null,null,null,null,null,null,null,null,null,null,null,null,"Player17",6,null,"Player14",12]
[null,null,null,null,null,null,null,null,null,null,null,null,null,null,null,null,"Mike",6,null,"Player12",10]
[null,null,null,null,null,null,null,null,null,null,null,null,null,null,null,null,"Player20",5,null,"Player13",10]
[null,null,null,null,null,null,null,null,null,null,null,null,null,null,null,null,"Player11",4,null,"Player5",9]
[null,null,null,null,null,null,null,null,null,null,null,null,null,null,null,null,"Player19",4,null,"Player17",9]
[null,null,null,null,null,null,null,null,null,null,null,null,null,null,null,null,"Player18",4,null,"Player11",8]
[null,null,null,null,null,null,null,null,null,null,null,null,null,null,null,null,"Player12",1,null,"Player18",5]
[null,null,null,null,null,null,null,null,null,null,null,null,null,null,null,null,"Player4",1,null,"Player4",4]

{"sheet":"Round3","index":9,"n_rows":21,"n_cols":21,"rows_kept":21,"cut":false,"hidden":false,"merged":[]}
["Swaps: 1","Home Player","Away Player","Home Points","Away Points","Home TD","Away TD","Home Cas","Away Cas","Home Bonus1","Away Bonus1","Home Bonus2","Away Bonus2",null,null,null,"Points Before Games",null,null,"Points After Games"]
[null,"Player15","Player8",{"$f":"fctScore(F2,G2,H2,J2,L2)","v":6},{"$f":"fctScore(G2,F2,I2,K2,M2)","v":7},2,2,1,2,3,2,0,1,null,null,null,"Player15",22,null,"Player9",29]
[null,"Player9","Player19",{"$f":"fctScore(F3,G3,H3,J3,L3)","v":11},{"$f":"fctScore(G3,F3,I3,K3,M3)","v":2},2,0,0,2,1,3,2,2,null,null,null,"Player8",19,null,"Player15",28]
[null,"Player10","Mike",5,5,0,0,2,2,0,1,2,0,null,null,null,"Player9",18,null,"Player8",26]
[null,"Linus","Player7",5,5,2,2,0,0,2,1,1,1,null,null,null,"Player19",18,null,"Alex",24]
[null,"Alex","Player16",11,6,3,2,2,3,2,3,0,2,null,null,null,"Player10",17,null,"Player10",22]
[null,"Player6","Player20",2,8,1,2,0,0,1,2,2,0,null,null,null,"Mike",17,null,"Player12",22]
[null,"Player14","Player12",1,12,0,2,1,1,1,3,2,1,null,null,null,"Linus",16,null,"Mike",22]
[null,"Player13","Player5",5,6,1,1,1,2,1,2,1,0,null,null,null,"Player7",16,null,"Linus",21]
[null,"Player17","Player11",3,12,1,3,2,0,2,1,3,2,null,null,null,"Alex",13,null,"Player7",21]
[null,"Player18","Player4",7,6,2,2,2,1,0,2,2,1,null,null,null,"Player6",13,null,"Player20",20]
[null,null,null,null,null,null,null,null,null,null,null,null,null,null,null,null,"Player16",12,null,"Player11",20]
[null,null,null,null,null,null,null,null,null,null,null,null,null,null,null,null,"Player20",12,null,"Player19",20]
[null,null,null,null,null,null,null,null,null,null,null,null,null,null,null,null,"Player14",12,null,"Player16",18]
[null,null,null,null,null,null,null,null,null,null,null,null,null,null,null,null,"Player12",10,null,"Player5",15]
[null,null,null,null,null,null,null,null,null,null,null,null,null,null,null,null,"Player13",10,null,"Player13",15]
[null,null,null,null,null,null,null,null,null,null,null,null,null,null,null,null,"Player5",9,null,"Player6",15]
[null,null,null,null,null,null,null,null,null,null,null,null,null,null,null,null,"Player17",9,null,"Player14",13]
[null,null,null,null,null,null,null,null,null,null,null,null,null,null,null,null,"Player11",8,null,"Player18",12]
[null,null,null,null,null,null,null,null,null,null,null,null,null,null,null,null,"Player18",5,null,"Player17",12]
[null,null,null,null,null,null,null,null,null,null,null,null,null,null,null,null,"Player4",4,null,"Player4",10]

{"sheet":"Round4","index":10,"n_rows":21,"n_cols":21,"rows_kept":21,"cut":false,"hidden":false,"merged":[]}
["Swaps: 0","Home Player","Away Player","Home Points","Away Points","Home TD","Away TD","Home Cas","Away Cas","Home Bonus1","Away Bonus1","Home Bonus2","Away Bonus2",null,null,null,"Points Before Games",null,null,"Points After Games"]
[null,"Player9","Player15",{"$f":"fctScore(F2,G2,H2,J2,L2)","v":4},{"$f":"fctScore(G2,F2,I2,K2,M2)","v":12},1,3,3,0,3,1,1,0,null,null,null,"Player9",29,null,"Player15",40]
[null,"Player8","Alex",{"$f":"fctScore(F3,G3,H3,J3,L3)","v":2},{"$f":"fctScore(G3,F3,I3,K3,M3)","v":11},1,2,0,3,1,2,1,2,null,null,null,"Player15",28,null,"Alex",35]
[null,"Player10","Player12",6,9,3,3,0,3,1,1,2,1,null,null,null,"Player8",26,null,"Mike",35]
[null,"Mike","Linus",13,3,3,1,1,2,1,1,0,2,null,null,null,"Alex",24,null,"Player9",33]
[null,"Player7","Player20",4,4,1,1,0,0,3,2,0,0,null,null,null,"Player10",22,null,"Player11",32]
[null,"Player11","Player19",12,1,2,0,1,1,0,1,1,2,null,null,null,"Player12",22,null,"Player12",31]
[null,"Player16","Player5",8,4,2,1,0,2,0,0,2,3,null,null,null,"Mike",22,null,"Player8",28]
[null,"Player13","Player6",13,2,2,0,2,2,0,0,3,3,null,null,null,"Linus",21,null,"Player10",28]
[null,"Player14","Player18",6,5,1,1,2,1,1,2,3,2,null,null,null,"Player7",21,null,"Player13",28]
[null,"Player17","Player4",4,9,1,2,2,1,0,1,1,2,null,null,null,"Player20",20,null,"Player16",26]
[null,null,null,null,null,null,null,null,null,null,null,null,null,null,null,null,"Player11",20,null,"Player7",25]
[null,null,null,null,null,null,null,null,null,null,null,null,null,null,null,null,"Player19",20,null,"Player20",24]
[null,null,null,null,null,null,null,null,null,null,null,null,null,null,null,null,"Player16",18,null,"Linus",24]
[null,null,null,null,null,null,null,null,null,null,null,null,null,null,null,null,"Player5",15,null,"Player19",21]
[null,null,null,null,null,null,null,null,null,null,null,null,null,null,null,null,"Player13",15,null,"Player14",19]
[null,null,null,null,null,null,null,null,null,null,null,null,null,null,null,null,"Player6",15,null,"Player5",19]
[null,null,null,null,null,null,null,null,null,null,null,null,null,null,null,null,"Player14",13,null,"Player4",19]
[null,null,null,null,null,null,null,null,null,null,null,null,null,null,null,null,"Player18",12,null,"Player18",17]
[null,null,null,null,null,null,null,null,null,null,null,null,null,null,null,null,"Player17",12,null,"Player6",17]
[null,null,null,null,null,null,null,null,null,null,null,null,null,null,null,null,"Player4",10,null,"Player17",16]

{"sheet":"Round5","index":11,"n_rows":21,"n_cols":21,"rows_kept":21,"cut":false,"hidden":false,"merged":[]}
["Swaps: 4","Home Player","Away Player","Home Points","Away Points","Home TD","Away TD","Home Cas","Away Cas","Home Bonus1","Away Bonus1","Home Bonus2","Away Bonus2",null,null,null,"Points Before Games",null,null,"Points After Games"]
[null,"Player15","Alex",{"$f":"fctScore(F2,G2,H2,J2,L2)","v":5},{"$f":"fctScore(G2,F2,I2,K2,M2)","v":5},1,1,1,1,2,2,3,3,null,null,null,"Player15",40,null,"Mike",45]
[null,"Mike","Player9",{"$f":"fctScore(F3,G3,H3,J3,L3)","v":10},{"$f":"fctScore(G3,F3,I3,K3,M3)","v":5},3,2,1,2,1,2,2,1,null,null,null,"Alex",35,null,"Player15",45]
[null,"Player11","Player12",0,11,0,2,0,0,2,1,0,2,null,null,null,"Mike",35,null,"Player8",42]
[null,"Player8","Player10",14,2,2,0,3,2,1,1,1,1,null,null,null,"Player9",33,null,"Player12",42]
[null,"Player13","Player16",2,9,0,1,1,2,2,2,1,3,null,null,null,"Player11",32,null,"Alex",40]
[null,"Player7","Player14",8,4,1,0,1,3,2,0,3,1,null,null,null,"Player12",31,null,"Player9",38]
[null,"Player20","Linus",11,1,2,0,0,1,1,2,3,1,null,null,null,"Player8",28,null,"Player20",35]
[null,"Player18","Player5",9,4,2,1,1,2,3,0,0,0,null,null,null,"Player10",28,null,"Player16",35]
[null,"Player4","Player19",7,8,2,2,2,3,1,0,2,2,null,null,null,"Player13",28,null,"Player7",33]
[null,"Player6","Player17",11,3,2,0,0,3,0,0,1,3,null,null,null,"Player16",26,null,"Player11",32]
[null,null,null,null,null,null,null,null,null,null,null,null,null,null,null,null,"Player7",25,null,"Player10",30]
[null,null,null,null,null,null,null,null,null,null,null,null,null,null,null,null,"Player20",24,null,"Player13",30]
[null,null,null,null,null,null,null,null,null,null,null,null,null,null,null,null,"Linus",24,null,"Player19",29]
[null,null,null,null,null,null,null,null,null,null,null,null,null,null,null,null,"Player19",21,null,"Player6",28]
[null,null,null,null,null,null,null,null,null,null,null,null,null,null,null,null,"Player14",19,null,"Player18",26]
[null,null,null,null,null,null,null,null,null,null,null,null,null,null,null,null,"Player5",19,null,"Player4",26]
[null,null,null,null,null,null,null,null,null,null,null,null,null,null,null,null,"Player4",19,null,"Linus",25]
[null,null,null,null,null,null,null,null,null,null,null,null,null,null,null,null,"Player18",17,null,"Player5",23]
[null,null,null,null,null,null,null,null,null,null,null,null,null,null,null,null,"Player6",17,null,"Player14",23]
[null,null,null,null,null,null,null,null,null,null,null,null,null,null,null,null,"Player17",16,null,"Player17",19]

{"sheet":"Round6","index":12,"n_rows":21,"n_cols":21,"rows_kept":21,"cut":false,"hidden":false,"merged":[]}
["Swaps: 9","Home Player","Away Player","Home Points","Away Points","Home TD","Away TD","Home Cas","Away Cas","Home Bonus1","Away Bonus1","Home Bonus2","Away Bonus2",null,null,null,"Points Before Games",null,null,"Points After Games"]
[null,"Mike","Player15",{"$f":"fctScore(F2,G2,H2,J2,L2)","v":8},{"$f":"fctScore(G2,F2,I2,K2,M2)","v":3},1,0,1,2,3,1,1,2,null,null,null,"Mike",45,null,"Player12",54]
[null,"Player8","Player9",{"$f":"fctScore(F3,G3,H3,J3,L3)","v":9},{"$f":"fctScore(G3,F3,I3,K3,M3)","v":3},3,2,0,0,2,2,1,1,null,null,null,"Player15",45,null,"Mike",53]
[null,"Player12","Alex",12,1,3,1,0,0,1,1,1,1,null,null,null,"Player8",42,null,"Player8",51]
[null,"Player18","Player16",8,2,2,1,0,0,2,1,2,1,null,null,null,"Player12",42,null,"Player15",48]
[null,"Player7","Player11",13,2,2,0,2,2,2,1,1,1,null,null,null,"Alex",40,null,"Player20",47]
[null,"Player13","Player19",13,2,3,1,1,1,1,2,0,2,null,null,null,"Player9",38,null,"Player7",46]
[null,"Player5","Player20",1,12,0,2,1,1,3,3,1,2,null,null,null,"Player20",35,null,"Player13",43]
[null,"Player17","Player10",2,8,0,1,1,1,0,2,2,3,null,null,null,"Player16",35,null,"Player6",42]
[null,"Linus","Player4",3,12,1,3,2,0,3,1,1,2,null,null,null,"Player7",33,null,"Player9",41]
[null,"Player14","Player6",1,14,0,2,1,3,3,3,3,2,null,null,null,"Player11",32,null,"Alex",41]
[null,null,null,null,null,null,null,null,null,null,null,null,null,null,null,null,"Player10",30,null,"Player10",38]
[null,null,null,null,null,null,null,null,null,null,null,null,null,null,null,null,"Player13",30,null,"Player4",38]
[null,null,null,null,null,null,null,null,null,null,null,null,null,null,null,null,"Player19",29,null,"Player16",37]
[null,null,null,null,null,null,null,null,null,null,null,null,null,null,null,null,"Player6",28,null,"Player18",34]
[null,null,null,null,null,null,null,null,null,null,null,null,null,null,null,null,"Player18",26,null,"Player11",34]
[null,null,null,null,null,null,null,null,null,null,null,null,null,null,null,null,"Player4",26,null,"Player19",31]
[null,null,null,null,null,null,null,null,null,null,null,null,null,null,null,null,"Linus",25,null,"Linus",28]
[null,null,null,null,null,null,null,null,null,null,null,null,null,null,null,null,"Player5",23,null,"Player5",24]
[null,null,null,null,null,null,null,null,null,null,null,null,null,null,null,null,"Player14",23,null,"Player14",24]
[null,null,null,null,null,null,null,null,null,null,null,null,null,null,null,null,"Player17",19,null,"Player17",21]

{"sheet":"Round7","index":13,"n_rows":0,"n_cols":0,"rows_kept":0,"cut":false,"hidden":false,"merged":[]}

{"sheet":"Round8","index":14,"n_rows":0,"n_cols":0,"rows_kept":0,"cut":false,"hidden":false,"merged":[]}

{"sheet":"Round9","index":15,"n_rows":0,"n_cols":0,"rows_kept":0,"cut":false,"hidden":false,"merged":[]}